{"text_format":"1","workbook":"xlsx","n_sheets":5,"sheets":["Instruccions - Instrucciones","Dades i com... - Datos y com...","Pressupost - Pressupuesto","Detall - Detalle","Llista desplegable"],"not_rendered":{"charts":0,"images":2,"macros":1,"external_links":1,"defined_names":17,"comments":1,"pivot_tables":0},"unopened":[],"bounds":{"document_bytes":16777216,"sheet_cells":100000,"rows_first":2000,"rows_last":500,"rows_between":2000,"halvings":0,"cell_chars":16384,"cell_head_chars":4096},"cells_cut":0,"cells_raw":0,"read":"whole","date_system":"1900"}

{"sheet":"Instruccions - Instrucciones","index":0,"n_rows":29,"n_cols":7,"rows_kept":29,"cut":false,"hidden":false,"merged":[]}
[]
[null,"Instruccions d'ús del formulari",null,null,null,null,"Instrucciones de uso del formulario"]
[]
[null,"Aquest formulari de pressupost consta de 3 pestanyes:",null,null,null,null,"Este formulario de presupuesto consta de 3 pestañas:"]
[null,"1. Dades i comprovacions: s'introduiran les dades generals del projecte i també inclourà les verificacions per tal de comprovar que s'ha emplenat correctament.",null,null,null,null,"1. Datos y comprobaciones: se introducirán los datos generales del proyecto y también incluirá las verificaciones para comprobar que se ha rellenado correctamente."]
[null,"2. Detall: S'inclouran les dades relatives a les despeses del projecte.",null,null,null,null,"2. Detalle: Se incluirán los datos relativos a los gastos del proyecto."]
[null,"3. Pressupost: És la visualització en format compte de resultats de les despeses que s'han introduït a la pestanya detall de despeses.",null,null,null,null,"3. Presupuesto: Es la visualización en formato cuenta de resultados de los gastos que se han introducido en la pestaña detalle de gastos."]
[]
[null,"Com emplenar el formulari de pressupost?",null,null,null,null,"Como rellenar el formulario de presupuesto?"]
[null,"Pas 1: Introduir la informació del projecte a la pestanya \"Dades i  comprovacions\"",null,null,null,null,"Paso 1: Introducir la información de el proyecto en la pestaña \"Datos y comprobaciones\""]
[null,"En primer lloc, introduirem tota la informació relativa al projecte a la pestanya \"Dades i comprovacions\". Els camps a emplenar estan ombrejats en gris.",null,null,null,null,"En primer lugar, introduciremos toda la información relativa a el proyecto tipo en la pestaña Datos y comprobaciones. Los campos a llenar están sombreados en gris."]
[null,"Aquest pas és molt important i s'ha d'emplenar tota la informació a l'inici ja que, posteriorment, el que haurem introduït aquí alimentarà la informació a introduir en la pestanya \"detall despesa\".",null,null,null,null,"Este paso es muy importante y debe rellenarse toda la información al inicio, ya que posteriormente lo que habremos introducido aquí, alimentará la información a introducir en la pestaña \"detalle gasto\"."]
[null,"Veureu que hi ha un quadre per les activitats del vostre pressupost, aquestes han de servir per classificar les despeses del projecte amb una perspectiva millor adaptada a la vostra acció.",null,null,null,null,"Veréis que hay un recuadro para las actividades de vuestro presupuesto, estos deben servir para clasificar los gastos del proyecto con una perspectiva mejor adaptada a vuestra acción"]
[null,"Dins del quadre de les activitats, a la columna \"E\", s'ha afegit la possibilitat d'imputar despeses del projecte a activitats de manera tranversal. Així, les despeses que facin referència a totes les activitats al mateix temps es poden introduir en base al seu percentatge al full de dades i comprovacions. El sumatori d'aquesta columna ha de ser del 100%.",null,null,null,null,"Dentro del recuadro de las actividades, en la columna \"E\", se ha añadido la posibilidad de imputar gastos del proyecto a actividades de manera transversal. Así, los gastos que hagan referencia a todas las actividades al mismo tiempo se pueden introducir según su porcentaje en la hoja de datos y comprobaciones. El total de esta columna debe ser del 100%."]
[null,"A la pestanya de pressupostos, apareixeran noves columnes a mesura que s’afegeixin activitats a la pestanya de dades i comprovacions, les quals mostraran l’import de despesa per activitats.",null,null,null,null,"En la pestaña de presupuestos, aparecerán nuevas columnas a medida que se añadan actividades en la pestaña de datos y comprobaciones, las cuales mostrarán el monto de gasto por actividades"]
[null,"Pas 2: Introducció de les despeses a la pestanya \"Detall despeses\"",null,null,null,null,"Paso 2: Introducción de los gastos en la pestaña \"Detalle gastos\""]
[null,"A l'apartat \"detall de despeses\" anirem introduint les diferents despeses del projecte en funció de la partida pressupostària detallada a les bases a la qual fan referència, també basant-se en les activitats que s'hagin escollit a la pestanya de dades i comprovacions.",null,null,null,null,"En el apartado 'detalle de gastos' iremos introduciendo los diferentes gastos del proyecto en función de la partida presupuestaria detallada en las bases a la que hacen referencia, también basándose en las actividades que se hayan seleccionado en la pestaña de datos y comprobaciones."]
[null,"Els camps a emplenar són els que estan ombrejats en color gris.",null,null,null,null,"Los campos a rellenar son los que están sombreados en color gris."]
[null,"El camp valorització només l'emplenarem amb \"Sí\" en cas que es tracti d'una despesa valoritzada, en cas contrari, el deixarem en blanc.",null,null,null,null,"El campo valorización sólo lo llenaremos con \"Sí\" en caso de que se trate de un gasto valorizado, de lo contrario, lo dejaremos en blanco."]
[null,"En cas que assigneu més d'una activitat a una despesa no caldrà emplenar les cel·les que canviïn a aquest format:",null,null,null,null,"En caso de que asignéis más de una actividad a un gasto, no será necesario rellenar las celdas que adopten este formato:"]
[null,"A les columnes que estan sota l'apartat \"filtres\" podrem filtrar i exportar la informació per treballar-la si escau.",null,null,null,null,"En las columnas que están debajo del apartado \"filtros\" podremos filtrar y exportar la información para trabajarla si nos hiciera falta."]
[]
[null,"Pas 3: Comprovació d'errors",null,null,null,null,"Paso 3: Comprobación de errores"]
[null,"Comprovar a la pestanya \"Dades i comprovacions\" que no hi ha cap cel·la marcada en vermell.",null,null,null,null,"Compruebe en la pestaña \"Datos y comprobaciones\" que no hay ningún celda marcada el rojo."]
[]
[null,"A tenir en compte en l'apartat \"Detall de despeses\":",null,null,null,null,"A tener en cuenta en el apartado \"Detalle de gastos\":"]
[null,"Quan afegim files, sempre s'afegeixen al final",null,null,null,null,"Cuando añadimos filas, siempre se añaden al final"]
[null,"En cas que haguem oblidat o vulguem imputar una despesa a una activitat addicional, haurem d'eliminar totes les línies que fan referencia a aquesta despesa i tornar-la a crear de nou a l'última fila buida, ja que no es permet inserir files.",null,null,null,null,"En caso de que hayamos olvidado o queramos imputar un gasto a una actividad adicional, deberemos eliminar todas las líneas que hacen referencia a este gasto y volver a crearlo de nuevo en la última fila vacía, ya que no se permite insertar filas."]
[null,"No s'han d'eliminar mai totes les files, ja que és bloquejarà el programa.",null,null,null,null,"Nunca se deben eliminar todas las filas, ya que se bloqueará el programa."]

{"sheet":"Dades i com... - Datos y com...","index":1,"n_rows":60,"n_cols":19,"rows_kept":60,"cut":false,"hidden":false,"merged":[[60,7,60,9],[58,7,58,8],[53,7,53,8],[53,9,53,10],[44,14,44,17],[51,14,51,17],[52,14,52,15],[52,16,52,17],[53,14,53,15],[53,16,53,17],[42,14,42,17],[43,14,43,17],[6,3,6,10],[44,7,44,10],[26,3,26,10],[13,3,13,5],[21,3,21,5],[22,3,22,5],[41,7,42,7],[34,6,34,12],[9,3,9,9],[29,4,29,6],[30,4,30,6],[13,7,13,8],[14,7,14,8],[15,7,15,8],[20,3,20,5],[17,3,17,5],[46,7,46,8],[47,7,47,8],[48,7,48,8],[34,1,34,5],[28,4,28,10]]}
[]
[null,"Convocatòria convenis AH 2024 / Convocatoria convenios AH 2024"]
[null,"Formulari pressupost del projecte / Formulario de presupuesto del proyecto"]
[]
[]
[]
[null,null,null,"DADES GENERALS / DATOS GENERALES"]
[]
[null,null,null,"Nom del projecte / Nombre del proyecto:"]
[]
[]
[]
[null,null,null,"Títol del projecte / Título del proyecto",null,null,null,"Altres finançadors públics / Otros finanzadores públicos:",null,"Import / Importe:"]
[]
[]
[null,null,null,null,null,null,null,null,null,null,"Despeses:"]
[null,null,null,"Entitat beneficiària / Entidad beneficiaria:",null,null,null,null,null,{"$f":"SUM(J14:J16)","v":0},{"$f":"+'Pressupost - Pressupuesto'!D28","v":0}]
[]
[]
[null,null,null,"Sòcia local / Socia Local"]
[null,null,1]
[null,null,2]
[null,null,3]
[]
[]
[]
[null,null,null,"RESUM ECONÒMIC DEL PROJECTE / RESUMEN ECONÓMICO DEL PROYECTO"]
[]
[null,null,null,null,"SOL·LICITAT ACCD / SOLICITADO ACCD"]
[null,null,null,"TOTAL DESPESES / TOTAL GASTOS","INDIRECTES / INDIRECTOS",null,null,"DIRECTES / DIRECTOS","SUBVENCIÓ SOLICITADA A L'ACCD","CAPÍTOL IV","CAPÍTOL VII"]
[null,null,null,{"$f":"+'Pressupost - Pressupuesto'!B28","v":0},{"$f":"+'Pressupost - Pressupuesto'!C27","v":0},null,null,{"$f":"+'Pressupost - Pressupuesto'!C26","v":0},{"$f":"+'Pressupost - Pressupuesto'!C28","v":0},{"$f":"+'Pressupost - Pressupuesto'!C4+'Pressupost - Pressupuesto'!C27","v":0},{"$f":"+'Pressupost - Pressupuesto'!C24","v":0}]
[]
[]
[]
[null,"ACTIVITATS DEL PROJECTE / ACTIVIDADES DEL PROYECTO",null,null,null,null,"COMPROVACIONS / COMPROBACIONES"]
[]
[null,1,null,"Despeses transversals","% imputació despeses transversals"]
[null,2,"Activitat 1",null,null,null,null,"Pressupost total / pressupuesto total:",null,{"$f":"D31","v":0}]
[null,{"$f":"+IF(D39<>\"\",B38+1,\"\")","v":""},"Activitat 2",null,null,null,null,"Finançament ACCD / Financiación ACCD:",null,{"$f":"+I31","v":0}]
[null,{"$f":"+IF(D40<>\"\",B39+1,\"\")","v":""},"Activitat 3",null,null,null,null,"% Finançament ACCD / % Financiación ACCD:",null,{"$f":"IFERROR(J39/J38,0)","v":0},"Màxim 90% del total"]
[null,"","Activitat 4"]
[null,"","Activitat 5",null,null,null,null,"Import subvencionat\nsegons modalitat","Màxim","Import","Mínim"]
[null,"","Activitat 6",null,null,null,null,null,290000,{"$f":"+I31","v":0},150000,null,null,null,"Càlculs auxiliars COMPROVACIONS / COMPROBACIONES"]
[null,"","Activitat 7",null,null,null,null,null,null,null,null,null,null,null,"Intervenció tipus "]
[null,"","Activitat 8",null,null,null,null,"Comprovacions de pressupost / Comprobaciones presupuesto",null,null,null,null,null,null,"Comprovacions de pressupost / Comprobaciones pressupuesto"]
[null,"","Activitat 9",null,null,null,null,"DESPESES INDIRECTES / GASTOS INDIRECTOS",null,"Màx 12%",{"$f":"IFERROR(+R46/$I$31,0)","v":0},null,null,null,"DESPESES INDIRECTES / GASTOS INDIRECTOS",null,"Màx 12%",{"$f":"+'Pressupost - Pressupuesto'!C27","v":0}]
[null,"","Activitat 10",null,null,null,null,"a.10) Identificació i formulació",null,"Máx 10%",{"$f":"IFERROR(+R47/$I$31,0)","v":0},null,null,null,"a.10) Identificació i formulació",null,"Máx 10%",{"$f":"+'Pressupost - Pressupuesto'!C17","v":0}]
[null,"","Activitat 11",null,null,null,null,"a.16) Imprevistos",null,"Màx 5%",{"$f":"IFERROR(+R48/$I$31,0)","v":0},null,null,null,"a.16) Imprevistos",null,"Màx 5%",{"$f":"+'Pressupost - Pressupuesto'!C23","v":0}]
[null,"","Activitat 12",null,null,null,null,"a12 Avaluació / Evaluación",null,"Max 3%",{"$f":"IFERROR(+R49/$I$31,0)","v":0},null,null,null,"a12 Avaluació / Evaluación",null,"Max 3%",{"$f":"+'Pressupost - Pressupuesto'!C18","v":0}]
[null,"","Activitat 13",null,null,null,null,"B1.Béns inventariables",null,"Max 10 %",{"$f":"IFERROR(+R50/$I$31,0)","v":0},null,null,null,"B1.Béns inventeriables",null,"Max 10 %",{"$f":"+'Pressupost - Pressupuesto'!C25","v":0}]
[null,"","Activitat 14"]
[null,"","Activitat 15",null,null,null,null,"Les despeses indirectes s'han de repartir proporcionalment a l’import de la subvenció executat per l’entitat beneficiària i per la sòcia/es local/s. /",null,null,null,null,null,null,"DISTRIBUCIÓ PRESSUPOST PER ENTITAT EXECUTORA ACCD"]
[null,"","Activitat 16",null,null,null,null,"Los gastos indirectos se deben repartir proporcionalmente al importe de la subvención ejecutado por la entidad beneficiaria y por la/s socia/s local/es.",null,null,null,null,null,null,"BENEFICIÀRIA",null,"Sòcia_local"]
[null,"","Activitat 17",null,null,null,null,"% Import Total ACCD",null,"% Import Indirectes ACCD",null,null,null,null,{"$f":"+SUMIFS('Detall - Detalle'!K:K,'Detall - Detalle'!A:A,\"Beneficiària\")","v":0},null,{"$f":"+SUMIFS('Detall - Detalle'!K:K,'Detall - Detalle'!A:A,\"Sòcia_local\")","v":0},null,"Total ACCD"]
[null,"","Activitat 18",null,null,null,null,"% Beneficiaria","% Socia_Local","% Beneficiaria","% Socia_Local",null,null,null,null,{"$f":"+SUMIFS('Detall - Detalle'!$K:$K,'Detall - Detalle'!$A:$A,'Dades i com... - Datos y com...'!O53,'Detall - Detalle'!$Z:$Z,S55)","v":0},null,{"$f":"+SUMIFS('Detall - Detalle'!$K:$K,'Detall - Detalle'!$A:$A,'Dades i com... - Datos y com...'!Q53,'Detall - Detalle'!$Z:$Z,S55)","v":0},"DESPESES INDIRECTES (Cap IV) / GASTOS INDIRECTOS (Cap IV)"]
[null,"","Activitat 19",null,null,null,null,{"$f":"+IFERROR(O54/$I$31,\"\")","v":""},{"$f":"+IFERROR(Q54/$I$31,\"\")","v":""},{"$f":"IFERROR(P55/'Dades i com... - Datos y com...'!$E$31,\"\")","v":""},{"$f":"IFERROR(R55/'Dades i com... - Datos y com...'!$E$31,\"\")","v":""}]
[null,"","Activitat 20",null,null,null,null,"L'ACCD es reserva el dret a demanar reformulació del pressupost si el % import total ACCD i el % import indirectes ACCD són significativament diferents"]
[null,null,null,null,{"$f":"SUM(E38:E57)","v":0}]
[null,null,null,null,null,null,null,"Altres comprovacions a tenir en compte:"]
[null,null,null,null,null,null,null,"Salaris: El salari brut mensual màxim serà de 3.500 euros prorratejat en 14 pagues."]

{"sheet":"Pressupost - Pressupuesto","index":2,"n_rows":60,"n_cols":22,"rows_kept":60,"cut":false,"hidden":false,"merged":[[1,2,1,4],[1,5,1,6]]}
[]
["PRESSUPOST GLOBAL",null,"DISTRIBUCIÓ PRESSUPOST PER ENTITAT FINANÇADORA",null,null,"DISTRIBUCIÓ PRESSUPOST PER ENTITAT EXECUTORA"]
[1,"TOTAL PROJECTE","ACCD","ALTRES FINANÇADORS","BENEFICIÀRIA","BENEFICIÀRIA","SÒCIA_LOCAL"]
["DESPESES DIRECTES CORRENTS (Capítol IV) / GASTOS DIRECTOS CORRIENTES (Capítulo IV)",{"$f":"SUM(C4:E4)","v":0},{"$f":"+SUM(C5,C9:C23)","v":0},{"$f":"+SUM(D5,D9:D23)","v":0},{"$f":"+SUM(E5,E9:E23)","v":0},{"$f":"+SUM(F5,F9:F23)","v":0},{"$f":"+SUM(G5,G9:G23)","v":0}]
["a1. Remuneració  personal assalariat / Remuneración personal asalariado",{"$f":"SUM(C5:E5)","v":0},{"$f":"SUM(C6:C8)","v":0},{"$f":"SUM(D6:D8)","v":0},{"$f":"SUM(E6:E8)","v":0},{"$f":"SUM(F6:F8)","v":0},{"$f":"SUM(G6:G8)","v":0}]
["a1.1 Personal assalariat local / Personal asalariado local",{"$f":"SUM(C6:E6)","v":0},{"$f":"+SUMIF('Detall - Detalle'!$Z:$Z,$A6,'Detall - Detalle'!$V:$V)","v":0},{"$f":"+SUMIF('Detall - Detalle'!$Z:$Z,$A6,'Detall - Detalle'!$W:$W)","v":0},{"$f":"+SUMIF('Detall - Detalle'!$Z:$Z,$A6,'Detall - Detalle'!$X:$X)","v":0},{"$f":"SUMIFS('Detall - Detalle'!$U:$U,'Detall - Detalle'!$Z:$Z,'Pressupost - Pressupuesto'!$A6,'Detall - Detalle'!$Y:$Y,F$3)","v":0},{"$f":"SUMIFS('Detall - Detalle'!$U:$U,'Detall - Detalle'!$Z:$Z,'Pressupost - Pressupuesto'!$A6,'Detall - Detalle'!$Y:$Y,G$3)","v":0}]
["a1.2 Personal assalariat expatriat / Personal asalariado expatriado",{"$f":"SUM(C7:E7)","v":0},{"$f":"+SUMIF('Detall - Detalle'!$Z:$Z,$A7,'Detall - Detalle'!$V:$V)","v":0},{"$f":"+SUMIF('Detall - Detalle'!$Z:$Z,$A7,'Detall - Detalle'!$W:$W)","v":0},{"$f":"+SUMIF('Detall - Detalle'!$Z:$Z,$A7,'Detall - Detalle'!$X:$X)","v":0},{"$f":"SUMIFS('Detall - Detalle'!$U:$U,'Detall - Detalle'!$Z:$Z,'Pressupost - Pressupuesto'!$A7,'Detall - Detalle'!$Y:$Y,F$3)","v":0},{"$f":"SUMIFS('Detall - Detalle'!$U:$U,'Detall - Detalle'!$Z:$Z,'Pressupost - Pressupuesto'!$A7,'Detall - Detalle'!$Y:$Y,G$3)","v":0}]
["a1.3 Personal assalariat a Catalunya / Personal asalariado Cataluña",0,{"$f":"+SUMIF('Detall - Detalle'!$Z:$Z,$A8,'Detall - Detalle'!$V:$V)","v":0},{"$f":"+SUMIF('Detall - Detalle'!$Z:$Z,$A8,'Detall - Detalle'!$W:$W)","v":0},{"$f":"+SUMIF('Detall - Detalle'!$Z:$Z,$A8,'Detall - Detalle'!$X:$X)","v":0},{"$f":"SUMIFS('Detall - Detalle'!$U:$U,'Detall - Detalle'!$Z:$Z,'Pressupost - Pressupuesto'!$A8,'Detall - Detalle'!$Y:$Y,F$3)","v":0},{"$f":"SUMIFS('Detall - Detalle'!$U:$U,'Detall - Detalle'!$Z:$Z,'Pressupost - Pressupuesto'!$A8,'Detall - Detalle'!$Y:$Y,G$3)","v":0}]
["a2 Lloguers / Alquileres",{"$f":"SUM(C9:E9)","v":0},{"$f":"+SUMIF('Detall - Detalle'!$Z:$Z,$A9,'Detall - Detalle'!$V:$V)","v":0},{"$f":"+SUMIF('Detall - Detalle'!$Z:$Z,$A9,'Detall - Detalle'!$W:$W)","v":0},{"$f":"+SUMIF('Detall - Detalle'!$Z:$Z,$A9,'Detall - Detalle'!$X:$X)","v":0},{"$f":"SUMIFS('Detall - Detalle'!$U:$U,'Detall - Detalle'!$Z:$Z,'Pressupost - Pressupuesto'!$A9,'Detall - Detalle'!$Y:$Y,F$3)","v":0},{"$f":"SUMIFS('Detall - Detalle'!$U:$U,'Detall - Detalle'!$Z:$Z,'Pressupost - Pressupuesto'!$A9,'Detall - Detalle'!$Y:$Y,G$3)","v":0}]
["a3 Manteniment, conservació i reparació / Mantenimiento, conservación y reparación",{"$f":"SUM(C10:E10)","v":0},{"$f":"+SUMIF('Detall - Detalle'!$Z:$Z,$A10,'Detall - Detalle'!$V:$V)","v":0},{"$f":"+SUMIF('Detall - Detalle'!$Z:$Z,$A10,'Detall - Detalle'!$W:$W)","v":0},{"$f":"+SUMIF('Detall - Detalle'!$Z:$Z,$A10,'Detall - Detalle'!$X:$X)","v":0},{"$f":"SUMIFS('Detall - Detalle'!$U:$U,'Detall - Detalle'!$Z:$Z,'Pressupost - Pressupuesto'!$A10,'Detall - Detalle'!$Y:$Y,F$3)","v":0},{"$f":"SUMIFS('Detall - Detalle'!$U:$U,'Detall - Detalle'!$Z:$Z,'Pressupost - Pressupuesto'!$A10,'Detall - Detalle'!$Y:$Y,G$3)","v":0}]
["a4 Material ordinari / Material ordinario",0,{"$f":"+SUMIF('Detall - Detalle'!$Z:$Z,$A11,'Detall - Detalle'!$V:$V)","v":0},{"$f":"+SUMIF('Detall - Detalle'!$Z:$Z,$A11,'Detall - Detalle'!$W:$W)","v":0},{"$f":"+SUMIF('Detall - Detalle'!$Z:$Z,$A11,'Detall - Detalle'!$X:$X)","v":0},{"$f":"SUMIFS('Detall - Detalle'!$U:$U,'Detall - Detalle'!$Z:$Z,'Pressupost - Pressupuesto'!$A11,'Detall - Detalle'!$Y:$Y,F$3)","v":0},{"$f":"SUMIFS('Detall - Detalle'!$U:$U,'Detall - Detalle'!$Z:$Z,'Pressupost - Pressupuesto'!$A11,'Detall - Detalle'!$Y:$Y,G$3)","v":0}]
["a5 Comunicacions, despeses postals i missatgeria / Comunicaciones, gastos postales y mensajería",0,{"$f":"+SUMIF('Detall - Detalle'!$Z:$Z,$A12,'Detall - Detalle'!$V:$V)","v":0},{"$f":"+SUMIF('Detall - Detalle'!$Z:$Z,$A12,'Detall - Detalle'!$W:$W)","v":0},{"$f":"+SUMIF('Detall - Detalle'!$Z:$Z,$A12,'Detall - Detalle'!$X:$X)","v":0},{"$f":"SUMIFS('Detall - Detalle'!$U:$U,'Detall - Detalle'!$Z:$Z,'Pressupost - Pressupuesto'!$A12,'Detall - Detalle'!$Y:$Y,F$3)","v":0},{"$f":"SUMIFS('Detall - Detalle'!$U:$U,'Detall - Detalle'!$Z:$Z,'Pressupost - Pressupuesto'!$A12,'Detall - Detalle'!$Y:$Y,G$3)","v":0}]
["a6 Reunions, conferències i formacions / Reuniones, conferencias y formaciones",0,{"$f":"+SUMIF('Detall - Detalle'!$Z:$Z,$A13,'Detall - Detalle'!$V:$V)","v":0},{"$f":"+SUMIF('Detall - Detalle'!$Z:$Z,$A13,'Detall - Detalle'!$W:$W)","v":0},{"$f":"+SUMIF('Detall - Detalle'!$Z:$Z,$A13,'Detall - Detalle'!$X:$X)","v":0},{"$f":"SUMIFS('Detall - Detalle'!$U:$U,'Detall - Detalle'!$Z:$Z,'Pressupost - Pressupuesto'!$A13,'Detall - Detalle'!$Y:$Y,F$3)","v":0},{"$f":"SUMIFS('Detall - Detalle'!$U:$U,'Detall - Detalle'!$Z:$Z,'Pressupost - Pressupuesto'!$A13,'Detall - Detalle'!$Y:$Y,G$3)","v":0}]
["a7 Publicitat i difusió / Publicidad y difusión",0,{"$f":"+SUMIF('Detall - Detalle'!$Z:$Z,$A14,'Detall - Detalle'!$V:$V)","v":0},{"$f":"+SUMIF('Detall - Detalle'!$Z:$Z,$A14,'Detall - Detalle'!$W:$W)","v":0},{"$f":"+SUMIF('Detall - Detalle'!$Z:$Z,$A14,'Detall - Detalle'!$X:$X)","v":0},{"$f":"SUMIFS('Detall - Detalle'!$U:$U,'Detall - Detalle'!$Z:$Z,'Pressupost - Pressupuesto'!$A14,'Detall - Detalle'!$Y:$Y,F$3)","v":0},{"$f":"SUMIFS('Detall - Detalle'!$U:$U,'Detall - Detalle'!$Z:$Z,'Pressupost - Pressupuesto'!$A14,'Detall - Detalle'!$Y:$Y,G$3)","v":0}]
["a8 Publicacions / Publicaciones",0,{"$f":"+SUMIF('Detall - Detalle'!$Z:$Z,$A15,'Detall - Detalle'!$V:$V)","v":0},{"$f":"+SUMIF('Detall - Detalle'!$Z:$Z,$A15,'Detall - Detalle'!$W:$W)","v":0},{"$f":"+SUMIF('Detall - Detalle'!$Z:$Z,$A15,'Detall - Detalle'!$X:$X)","v":0},{"$f":"SUMIFS('Detall - Detalle'!$U:$U,'Detall - Detalle'!$Z:$Z,'Pressupost - Pressupuesto'!$A15,'Detall - Detalle'!$Y:$Y,F$3)","v":0},{"$f":"SUMIFS('Detall - Detalle'!$U:$U,'Detall - Detalle'!$Z:$Z,'Pressupost - Pressupuesto'!$A15,'Detall - Detalle'!$Y:$Y,G$3)","v":0}]
["a9 Treballs tècnics i professionals / Trabajos técnicos y profesionales",0,{"$f":"+SUMIF('Detall - Detalle'!$Z:$Z,$A16,'Detall - Detalle'!$V:$V)","v":0},{"$f":"+SUMIF('Detall - Detalle'!$Z:$Z,$A16,'Detall - Detalle'!$W:$W)","v":0},{"$f":"+SUMIF('Detall - Detalle'!$Z:$Z,$A16,'Detall - Detalle'!$X:$X)","v":0},{"$f":"SUMIFS('Detall - Detalle'!$U:$U,'Detall - Detalle'!$Z:$Z,'Pressupost - Pressupuesto'!$A16,'Detall - Detalle'!$Y:$Y,F$3)","v":0},{"$f":"SUMIFS('Detall - Detalle'!$U:$U,'Detall - Detalle'!$Z:$Z,'Pressupost - Pressupuesto'!$A16,'Detall - Detalle'!$Y:$Y,G$3)","v":0}]
["a10 Identificació i formulació / Identificación y formulación",0,{"$f":"+SUMIF('Detall - Detalle'!$Z:$Z,$A17,'Detall - Detalle'!$V:$V)","v":0},{"$f":"+SUMIF('Detall - Detalle'!$Z:$Z,$A17,'Detall - Detalle'!$W:$W)","v":0},{"$f":"+SUMIF('Detall - Detalle'!$Z:$Z,$A17,'Detall - Detalle'!$X:$X)","v":0},{"$f":"SUMIFS('Detall - Detalle'!$U:$U,'Detall - Detalle'!$Z:$Z,'Pressupost - Pressupuesto'!$A17,'Detall - Detalle'!$Y:$Y,F$3)","v":0},{"$f":"SUMIFS('Detall - Detalle'!$U:$U,'Detall - Detalle'!$Z:$Z,'Pressupost - Pressupuesto'!$A17,'Detall - Detalle'!$Y:$Y,G$3)","v":0}]
["a11 Avaluació / Evaluación",0,{"$f":"+SUMIF('Detall - Detalle'!$Z:$Z,$A18,'Detall - Detalle'!$V:$V)","v":0},{"$f":"+SUMIF('Detall - Detalle'!$Z:$Z,$A18,'Detall - Detalle'!$W:$W)","v":0},{"$f":"+SUMIF('Detall - Detalle'!$Z:$Z,$A18,'Detall - Detalle'!$X:$X)","v":0},{"$f":"SUMIFS('Detall - Detalle'!$U:$U,'Detall - Detalle'!$Z:$Z,'Pressupost - Pressupuesto'!$A18,'Detall - Detalle'!$Y:$Y,F$3)","v":0},{"$f":"SUMIFS('Detall - Detalle'!$U:$U,'Detall - Detalle'!$Z:$Z,'Pressupost - Pressupuesto'!$A18,'Detall - Detalle'!$Y:$Y,G$3)","v":0}]
["a12 Dietes, locomoció, trasllats i allotjaments / Dietas, locomoción, traslados y alojamientos",0,{"$f":"+SUMIF('Detall - Detalle'!$Z:$Z,$A19,'Detall - Detalle'!$V:$V)","v":0},{"$f":"+SUMIF('Detall - Detalle'!$Z:$Z,$A19,'Detall - Detalle'!$W:$W)","v":0},{"$f":"+SUMIF('Detall - Detalle'!$Z:$Z,$A19,'Detall - Detalle'!$X:$X)","v":0},{"$f":"SUMIFS('Detall - Detalle'!$U:$U,'Detall - Detalle'!$Z:$Z,'Pressupost - Pressupuesto'!$A19,'Detall - Detalle'!$Y:$Y,F$3)","v":0},{"$f":"SUMIFS('Detall - Detalle'!$U:$U,'Detall - Detalle'!$Z:$Z,'Pressupost - Pressupuesto'!$A19,'Detall - Detalle'!$Y:$Y,G$3)","v":0}]
["a13 Informe auditor / Informe de auditor",0,{"$f":"+SUMIF('Detall - Detalle'!$Z:$Z,$A20,'Detall - Detalle'!$V:$V)","v":0},{"$f":"+SUMIF('Detall - Detalle'!$Z:$Z,$A20,'Detall - Detalle'!$W:$W)","v":0},{"$f":"+SUMIF('Detall - Detalle'!$Z:$Z,$A20,'Detall - Detalle'!$X:$X)","v":0},{"$f":"SUMIFS('Detall - Detalle'!$U:$U,'Detall - Detalle'!$Z:$Z,'Pressupost - Pressupuesto'!$A20,'Detall - Detalle'!$Y:$Y,F$3)","v":0},{"$f":"SUMIFS('Detall - Detalle'!$U:$U,'Detall - Detalle'!$Z:$Z,'Pressupost - Pressupuesto'!$A20,'Detall - Detalle'!$Y:$Y,G$3)","v":0}]
["a14 Despeses financeres / Gastos financieros",0,{"$f":"+SUMIF('Detall - Detalle'!$Z:$Z,$A21,'Detall - Detalle'!$V:$V)","v":0},{"$f":"+SUMIF('Detall - Detalle'!$Z:$Z,$A21,'Detall - Detalle'!$W:$W)","v":0},{"$f":"+SUMIF('Detall - Detalle'!$Z:$Z,$A21,'Detall - Detalle'!$X:$X)","v":0},{"$f":"SUMIFS('Detall - Detalle'!$U:$U,'Detall - Detalle'!$Z:$Z,'Pressupost - Pressupuesto'!$A21,'Detall - Detalle'!$Y:$Y,F$3)","v":0},{"$f":"SUMIFS('Detall - Detalle'!$U:$U,'Detall - Detalle'!$Z:$Z,'Pressupost - Pressupuesto'!$A21,'Detall - Detalle'!$Y:$Y,G$3)","v":0}]
["a15 Despeses de suport legal / Gastos de soporte legal",0,{"$f":"+SUMIF('Detall - Detalle'!$Z:$Z,$A22,'Detall - Detalle'!$V:$V)","v":0},{"$f":"+SUMIF('Detall - Detalle'!$Z:$Z,$A22,'Detall - Detalle'!$W:$W)","v":0},{"$f":"+SUMIF('Detall - Detalle'!$Z:$Z,$A22,'Detall - Detalle'!$X:$X)","v":0},{"$f":"SUMIFS('Detall - Detalle'!$U:$U,'Detall - Detalle'!$Z:$Z,'Pressupost - Pressupuesto'!$A22,'Detall - Detalle'!$Y:$Y,F$3)","v":0},{"$f":"SUMIFS('Detall - Detalle'!$U:$U,'Detall - Detalle'!$Z:$Z,'Pressupost - Pressupuesto'!$A22,'Detall - Detalle'!$Y:$Y,G$3)","v":0}]
["a16 Imprevistos / Imprevistos",0,{"$f":"+SUMIF('Detall - Detalle'!$Z:$Z,$A23,'Detall - Detalle'!$V:$V)","v":0},{"$f":"+SUMIF('Detall - Detalle'!$Z:$Z,$A23,'Detall - Detalle'!$W:$W)","v":0},{"$f":"+SUMIF('Detall - Detalle'!$Z:$Z,$A23,'Detall - Detalle'!$X:$X)","v":0},{"$f":"SUMIFS('Detall - Detalle'!$U:$U,'Detall - Detalle'!$Z:$Z,'Pressupost - Pressupuesto'!$A23,'Detall - Detalle'!$Y:$Y,F$3)","v":0},{"$f":"SUMIFS('Detall - Detalle'!$U:$U,'Detall - Detalle'!$Z:$Z,'Pressupost - Pressupuesto'!$A23,'Detall - Detalle'!$Y:$Y,G$3)","v":0}]
["DESPESES DIRECTES D'INVERSIÓ (Capítol VII) / GASTOS DIRECTOS DE INVERSIÓN (Capítulo VII)",{"$f":"SUM(C24:E24)","v":0},{"$f":"+C25","v":0},{"$f":"+D25","v":0},{"$f":"+E25","v":0},{"$f":"+F25","v":0},{"$f":"+G25","v":0}]
["b1 Béns inventariables / Bienes inventariables",0,{"$f":"+SUMIF('Detall - Detalle'!$Z:$Z,$A25,'Detall - Detalle'!$V:$V)","v":0},{"$f":"+SUMIF('Detall - Detalle'!$Z:$Z,$A25,'Detall - Detalle'!$W:$W)","v":0},{"$f":"+SUMIF('Detall - Detalle'!$Z:$Z,$A25,'Detall - Detalle'!$X:$X)","v":0},{"$f":"SUMIFS('Detall - Detalle'!$U:$U,'Detall - Detalle'!$Z:$Z,'Pressupost - Pressupuesto'!$A25,'Detall - Detalle'!$Y:$Y,F$3)","v":0},{"$f":"SUMIFS('Detall - Detalle'!$U:$U,'Detall - Detalle'!$Z:$Z,'Pressupost - Pressupuesto'!$A25,'Detall - Detalle'!$Y:$Y,G$3)","v":0}]
["TOTAL DESPESES DIRECTES / TOTAL GASTOS DIRECTOS",0,{"$f":"+C24+C4","v":0},{"$f":"+D24+D4","v":0},{"$f":"+E24+E4","v":0},{"$f":"+F24+F4","v":0},{"$f":"+G24+G4","v":0}]
["DESPESES INDIRECTES (Cap IV) / GASTOS INDIRECTOS (Cap IV)",0,{"$f":"+SUMIF('Detall - Detalle'!$Z:$Z,$A27,'Detall - Detalle'!$V:$V)","v":0},{"$f":"+SUMIF('Detall - Detalle'!$Z:$Z,$A27,'Detall - Detalle'!$W:$W)","v":0},{"$f":"+SUMIFS('Detall - Detalle'!$X:$X,'Detall - Detalle'!$Z:$Z,'Pressupost - Pressupuesto'!$A27,'Detall - Detalle'!$Y:$Y,E$3)","v":0},{"$f":"SUMIFS('Detall - Detalle'!$U:$U,'Detall - Detalle'!$Z:$Z,'Pressupost - Pressupuesto'!$A27,'Detall - Detalle'!$Y:$Y,F$3)","v":0},{"$f":"SUMIFS('Detall - Detalle'!$U:$U,'Detall - Detalle'!$Z:$Z,'Pressupost - Pressupuesto'!$A27,'Detall - Detalle'!$Y:$Y,G$3)","v":0}]
["TOTAL DESPESES / TOTAL GASTOS",0,{"$f":"+C27+C26","v":0},{"$f":"+D27+D26","v":0},{"$f":"+E27+E26","v":0},{"$f":"+F27+F26","v":0},{"$f":"+G27+G26","v":0}]
[]
[]
[]
["PRESSUPOST PER ACTIVITATS",null,{"$f":"+IF(C34<>\"\",\"Activitat \"&COUNTA($C$34:C34),\"\")","v":""},{"$f":"+IF(D34<>\"\",\"Activitat \"&COUNTA($C$34:D34),\"\")","v":""},{"$f":"+IF(E34<>\"\",\"Activitat \"&COUNTA($C$34:E34),\"\")","v":""},{"$f":"+IF(F34<>\"\",\"Activitat \"&COUNTA($C$34:F34),\"\")","v":""},{"$f":"+IF(G34<>\"\",\"Activitat \"&COUNTA($C$34:G34),\"\")","v":""},{"$f":"+IF(H34<>\"\",\"Activitat \"&COUNTA($C$34:H34),\"\")","v":""},{"$f":"+IF(I34<>\"\",\"Activitat \"&COUNTA($C$34:I34),\"\")","v":""},{"$f":"+IF(J34<>\"\",\"Activitat \"&COUNTA($C$34:J34),\"\")","v":""},{"$f":"+IF(K34<>\"\",\"Activitat \"&COUNTA($C$34:K34),\"\")","v":""},{"$f":"+IF(L34<>\"\",\"Activitat \"&COUNTA($C$34:L34),\"\")","v":""},{"$f":"+IF(M34<>\"\",\"Activitat \"&COUNTA($C$34:M34),\"\")","v":""},{"$f":"+IF(N34<>\"\",\"Activitat \"&COUNTA($C$34:N34),\"\")","v":""},{"$f":"+IF(O34<>\"\",\"Activitat \"&COUNTA($C$34:O34),\"\")","v":""},{"$f":"+IF(P34<>\"\",\"Activitat \"&COUNTA($C$34:P34),\"\")","v":""},{"$f":"+IF(Q34<>\"\",\"Activitat \"&COUNTA($C$34:Q34),\"\")","v":""},{"$f":"+IF(R34<>\"\",\"Activitat \"&COUNTA($C$34:R34),\"\")","v":""},{"$f":"+IF(S34<>\"\",\"Activitat \"&COUNTA($C$34:S34),\"\")","v":""},{"$f":"+IF(T34<>\"\",\"Activitat \"&COUNTA($C$34:T34),\"\")","v":""},{"$f":"+IF(U34<>\"\",\"Activitat \"&COUNTA($C$34:U34),\"\")","v":""},{"$f":"+IF(V34<>\"\",\"Activitat \"&COUNTA($C$34:V34),\"\")","v":""}]
[null,"% imputació",{"$f":"+IF(C34<>\"\",VLOOKUP(C32,'Dades i com... - Datos y com...'!$C$38:$E$57,3,FALSE),\"\")","v":""},{"$f":"+IF(D34<>\"\",VLOOKUP(D32,'Dades i com... - Datos y com...'!$C$38:$E$57,3,FALSE),\"\")","v":""},{"$f":"+IF(E34<>\"\",VLOOKUP(E32,'Dades i com... - Datos y com...'!$C$38:$E$57,3,FALSE),\"\")","v":""},{"$f":"+IF(F34<>\"\",VLOOKUP(F32,'Dades i com... - Datos y com...'!$C$38:$E$57,3,FALSE),\"\")","v":""},{"$f":"+IF(G34<>\"\",VLOOKUP(G32,'Dades i com... - Datos y com...'!$C$38:$E$57,3,FALSE),\"\")","v":""},{"$f":"+IF(H34<>\"\",VLOOKUP(H32,'Dades i com... - Datos y com...'!$C$38:$E$57,3,FALSE),\"\")","v":""},{"$f":"+IF(I34<>\"\",VLOOKUP(I32,'Dades i com... - Datos y com...'!$C$38:$E$57,3,FALSE),\"\")","v":""},{"$f":"+IF(J34<>\"\",VLOOKUP(J32,'Dades i com... - Datos y com...'!$C$38:$E$57,3,FALSE),\"\")","v":""},{"$f":"+IF(K34<>\"\",VLOOKUP(K32,'Dades i com... - Datos y com...'!$C$38:$E$57,3,FALSE),\"\")","v":""},{"$f":"+IF(L34<>\"\",VLOOKUP(L32,'Dades i com... - Datos y com...'!$C$38:$E$57,3,FALSE),\"\")","v":""},{"$f":"+IF(M34<>\"\",VLOOKUP(M32,'Dades i com... - Datos y com...'!$C$38:$E$57,3,FALSE),\"\")","v":""},{"$f":"+IF(N34<>\"\",VLOOKUP(N32,'Dades i com... - Datos y com...'!$C$38:$E$57,3,FALSE),\"\")","v":""},{"$f":"+IF(O34<>\"\",VLOOKUP(O32,'Dades i com... - Datos y com...'!$C$38:$E$57,3,FALSE),\"\")","v":""},{"$f":"+IF(P34<>\"\",VLOOKUP(P32,'Dades i com... - Datos y com...'!$C$38:$E$57,3,FALSE),\"\")","v":""},{"$f":"+IF(Q34<>\"\",VLOOKUP(Q32,'Dades i com... - Datos y com...'!$C$38:$E$57,3,FALSE),\"\")","v":""},{"$f":"+IF(R34<>\"\",VLOOKUP(R32,'Dades i com... - Datos y com...'!$C$38:$E$57,3,FALSE),\"\")","v":""},{"$f":"+IF(S34<>\"\",VLOOKUP(S32,'Dades i com... - Datos y com...'!$C$38:$E$57,3,FALSE),\"\")","v":""},{"$f":"+IF(T34<>\"\",VLOOKUP(T32,'Dades i com... - Datos y com...'!$C$38:$E$57,3,FALSE),\"\")","v":""},{"$f":"+IF(U34<>\"\",VLOOKUP(U32,'Dades i com... - Datos y com...'!$C$38:$E$57,3,FALSE),\"\")","v":""},{"$f":"+IF(V34<>\"\",VLOOKUP(V32,'Dades i com... - Datos y com...'!$C$38:$E$57,3,FALSE),\"\")","v":""}]
[null,"Despeses transversals",{"$f":"IF('Dades i com... - Datos y com...'!D38=\"\",\"\",'Dades i com... - Datos y com...'!D38)","v":""},{"$f":"+IF('Dades i com... - Datos y com...'!D39=\"\",\"\",'Dades i com... - Datos y com...'!D39)","v":""},{"$f":"+IF('Dades i com... - Datos y com...'!D40=\"\",\"\",'Dades i com... - Datos y com...'!D40)","v":""},{"$f":"+IF('Dades i com... - Datos y com...'!D41=\"\",\"\",'Dades i com... - Datos y com...'!D41)","v":""},{"$f":"+IF('Dades i com... - Datos y com...'!D42=\"\",\"\",'Dades i com... - Datos y com...'!D42)","v":""},{"$f":"+IF('Dades i com... - Datos y com...'!D43=\"\",\"\",'Dades i com... - Datos y com...'!D43)","v":""},{"$f":"+IF('Dades i com... - Datos y com...'!D44=\"\",\"\",'Dades i com... - Datos y com...'!D44)","v":""},{"$f":"+IF('Dades i com... - Datos y com...'!D45=\"\",\"\",'Dades i com... - Datos y com...'!D45)","v":""},{"$f":"+IF('Dades i com... - Datos y com...'!D46=\"\",\"\",'Dades i com... - Datos y com...'!D46)","v":""},{"$f":"+IF('Dades i com... - Datos y com...'!D47=\"\",\"\",'Dades i com... - Datos y com...'!D47)","v":""},{"$f":"++IF('Dades i com... - Datos y com...'!D48=\"\",\"\",'Dades i com... - Datos y com...'!D48)","v":""},{"$f":"IF('Dades i com... - Datos y com...'!D49=\"\",\"\",'Dades i com... - Datos y com...'!D49)","v":""},{"$f":"IF('Dades i com... - Datos y com...'!D50=\"\",\"\",'Dades i com... - Datos y com...'!D50)","v":""},{"$f":"IF('Dades i com... - Datos y com...'!D51=\"\",\"\",'Dades i com... - Datos y com...'!D51)","v":""},{"$f":"+IF('Dades i com... - Datos y com...'!D52=\"\",\"\",'Dades i com... - Datos y com...'!D52)","v":""},{"$f":"+IF('Dades i com... - Datos y com...'!D53=\"\",\"\",'Dades i com... - Datos y com...'!D53)","v":""},{"$f":"IF('Dades i com... - Datos y com...'!D54=\"\",\"\",'Dades i com... - Datos y com...'!D54)","v":""},{"$f":"IF('Dades i com... - Datos y com...'!D55=\"\",\"\",'Dades i com... - Datos y com...'!D55)","v":""},{"$f":"+IF('Dades i com... - Datos y com...'!D56=\"\",\"\",'Dades i com... - Datos y com...'!D56)","v":""},{"$f":"+IF('Dades i com... - Datos y com...'!D57=\"\",\"\",'Dades i com... - Datos y com...'!D57)","v":""}]
["DESPESES DIRECTES CORRENTS (Capítol IV) / GASTOS DIRECTOS CORRIENTES (Capítulo IV)",{"$f":"+SUM(B36,B40:B54)","v":0},{"$error":"#VALUE!"},{"$error":"#VALUE!"},{"$error":"#VALUE!"},{"$error":"#VALUE!"},{"$error":"#VALUE!"},{"$error":"#VALUE!"},{"$error":"#VALUE!"},{"$error":"#VALUE!"},{"$error":"#VALUE!"},{"$error":"#VALUE!"},{"$error":"#VALUE!"},{"$error":"#VALUE!"},{"$error":"#VALUE!"},{"$error":"#VALUE!"},{"$error":"#VALUE!"},{"$error":"#VALUE!"},{"$error":"#VALUE!"},{"$error":"#VALUE!"},{"$error":"#VALUE!"},{"$error":"#VALUE!"}]
["a1. Remuneració  personal assalariat / Remuneración personal asalariado",{"$f":"SUM(B37:B39)","v":0},{"$f":"SUM(C37:C39)","v":{"$error":"#VALUE!"}},{"$f":"SUM(D37:D39)","v":{"$error":"#VALUE!"}},{"$error":"#VALUE!"},{"$error":"#VALUE!"},{"$error":"#VALUE!"},{"$error":"#VALUE!"},{"$error":"#VALUE!"},{"$error":"#VALUE!"},{"$error":"#VALUE!"},{"$error":"#VALUE!"},{"$error":"#VALUE!"},{"$error":"#VALUE!"},{"$f":"SUM(O37:O39)","v":{"$error":"#VALUE!"}},{"$error":"#VALUE!"},{"$error":"#VALUE!"},{"$error":"#VALUE!"},{"$error":"#VALUE!"},{"$error":"#VALUE!"},{"$error":"#VALUE!"},{"$error":"#VALUE!"}]
["a1.1 Personal assalariat local / Personal asalariado local",{"$f":"+SUMIFS('Detall - Detalle'!$U:$U,'Detall - Detalle'!$S:$S,B$34,'Detall - Detalle'!$Z:$Z,'Pressupost - Pressupuesto'!$A6)","v":0},{"$f":"+SUMIFS('Detall - Detalle'!$U:$U,'Detall - Detalle'!$S:$S,C$34,'Detall - Detalle'!$Z:$Z,'Pressupost - Pressupuesto'!$A6)+$B37*C$33","v":{"$error":"#VALUE!"}},{"$f":"+SUMIFS('Detall - Detalle'!$U:$U,'Detall - Detalle'!$S:$S,D$34,'Detall - Detalle'!$Z:$Z,'Pressupost - Pressupuesto'!$A6)+$B37*D$33","v":{"$error":"#VALUE!"}},{"$f":"+SUMIFS('Detall - Detalle'!$U:$U,'Detall - Detalle'!$S:$S,E$34,'Detall - Detalle'!$Z:$Z,'Pressupost - Pressupuesto'!$A6)+$B37*E$33","v":{"$error":"#VALUE!"}},{"$f":"+SUMIFS('Detall - Detalle'!$U:$U,'Detall - Detalle'!$S:$S,F$34,'Detall - Detalle'!$Z:$Z,'Pressupost - Pressupuesto'!$A6)+$B37*F$33","v":{"$error":"#VALUE!"}},{"$f":"+SUMIFS('Detall - Detalle'!$U:$U,'Detall - Detalle'!$S:$S,G$34,'Detall - Detalle'!$Z:$Z,'Pressupost - Pressupuesto'!$A6)+$B37*G$33","v":{"$error":"#VALUE!"}},{"$f":"+SUMIFS('Detall - Detalle'!$U:$U,'Detall - Detalle'!$S:$S,H$34,'Detall - Detalle'!$Z:$Z,'Pressupost - Pressupuesto'!$A6)+$B37*H$33","v":{"$error":"#VALUE!"}},{"$f":"+SUMIFS('Detall - Detalle'!$U:$U,'Detall - Detalle'!$S:$S,I$34,'Detall - Detalle'!$Z:$Z,'Pressupost - Pressupuesto'!$A6)+$B37*I$33","v":{"$error":"#VALUE!"}},{"$f":"+SUMIFS('Detall - Detalle'!$U:$U,'Detall - Detalle'!$S:$S,J$34,'Detall - Detalle'!$Z:$Z,'Pressupost - Pressupuesto'!$A6)+$B37*J$33","v":{"$error":"#VALUE!"}},{"$f":"+SUMIFS('Detall - Detalle'!$U:$U,'Detall - Detalle'!$S:$S,K$34,'Detall - Detalle'!$Z:$Z,'Pressupost - Pressupuesto'!$A6)+$B37*K$33","v":{"$error":"#VALUE!"}},{"$f":"+SUMIFS('Detall - Detalle'!$U:$U,'Detall - Detalle'!$S:$S,L$34,'Detall - Detalle'!$Z:$Z,'Pressupost - Pressupuesto'!$A6)+$B37*L$33","v":{"$error":"#VALUE!"}},{"$f":"+SUMIFS('Detall - Detalle'!$U:$U,'Detall - Detalle'!$S:$S,M$34,'Detall - Detalle'!$Z:$Z,'Pressupost - Pressupuesto'!$A6)+$B37*M$33","v":{"$error":"#VALUE!"}},{"$f":"+SUMIFS('Detall - Detalle'!$U:$U,'Detall - Detalle'!$S:$S,N$34,'Detall - Detalle'!$Z:$Z,'Pressupost - Pressupuesto'!$A6)+$B37*N$33","v":{"$error":"#VALUE!"}},{"$f":"+SUMIFS('Detall - Detalle'!$U:$U,'Detall - Detalle'!$S:$S,O$34,'Detall - Detalle'!$Z:$Z,'Pressupost - Pressupuesto'!$A6)+$B37*O$33","v":{"$error":"#VALUE!"}},{"$f":"+SUMIFS('Detall - Detalle'!$U:$U,'Detall - Detalle'!$S:$S,P$34,'Detall - Detalle'!$Z:$Z,'Pressupost - Pressupuesto'!$A6)+$B37*P$33","v":{"$error":"#VALUE!"}},{"$f":"+SUMIFS('Detall - Detalle'!$U:$U,'Detall - Detalle'!$S:$S,Q$34,'Detall - Detalle'!$Z:$Z,'Pressupost - Pressupuesto'!$A6)+$B37*Q$33","v":{"$error":"#VALUE!"}},{"$f":"+SUMIFS('Detall - Detalle'!$U:$U,'Detall - Detalle'!$S:$S,R$34,'Detall - Detalle'!$Z:$Z,'Pressupost - Pressupuesto'!$A6)+$B37*R$33","v":{"$error":"#VALUE!"}},{"$f":"+SUMIFS('Detall - Detalle'!$U:$U,'Detall - Detalle'!$S:$S,S$34,'Detall - Detalle'!$Z:$Z,'Pressupost - Pressupuesto'!$A6)+$B37*S$33","v":{"$error":"#VALUE!"}},{"$f":"+SUMIFS('Detall - Detalle'!$U:$U,'Detall - Detalle'!$S:$S,T$34,'Detall - Detalle'!$Z:$Z,'Pressupost - Pressupuesto'!$A6)+$B37*T$33","v":{"$error":"#VALUE!"}},{"$f":"+SUMIFS('Detall - Detalle'!$U:$U,'Detall - Detalle'!$S:$S,U$34,'Detall - Detalle'!$Z:$Z,'Pressupost - Pressupuesto'!$A6)+$B37*U$33","v":{"$error":"#VALUE!"}},{"$f":"+SUMIFS('Detall - Detalle'!$U:$U,'Detall - Detalle'!$S:$S,V$34,'Detall - Detalle'!$Z:$Z,'Pressupost - Pressupuesto'!$A6)+$B37*V$33","v":{"$error":"#VALUE!"}}]
["a1.2 Personal assalariat expatriat / Personal asalariado expatriado",{"$f":"+SUMIFS('Detall - Detalle'!$U:$U,'Detall - Detalle'!$S:$S,B$34,'Detall - Detalle'!$Z:$Z,'Pressupost - Pressupuesto'!$A7)","v":0},{"$f":"+SUMIFS('Detall - Detalle'!$U:$U,'Detall - Detalle'!$S:$S,C$34,'Detall - Detalle'!$Z:$Z,'Pressupost - Pressupuesto'!$A7)+$B38*C$33","v":{"$error":"#VALUE!"}},{"$f":"+SUMIFS('Detall - Detalle'!$U:$U,'Detall - Detalle'!$S:$S,D$34,'Detall - Detalle'!$Z:$Z,'Pressupost - Pressupuesto'!$A7)+$B38*D$33","v":{"$error":"#VALUE!"}},{"$f":"+SUMIFS('Detall - Detalle'!$U:$U,'Detall - Detalle'!$S:$S,E$34,'Detall - Detalle'!$Z:$Z,'Pressupost - Pressupuesto'!$A7)+$B38*E$33","v":{"$error":"#VALUE!"}},{"$f":"+SUMIFS('Detall - Detalle'!$U:$U,'Detall - Detalle'!$S:$S,F$34,'Detall - Detalle'!$Z:$Z,'Pressupost - Pressupuesto'!$A7)+$B38*F$33","v":{"$error":"#VALUE!"}},{"$f":"+SUMIFS('Detall - Detalle'!$U:$U,'Detall - Detalle'!$S:$S,G$34,'Detall - Detalle'!$Z:$Z,'Pressupost - Pressupuesto'!$A7)+$B38*G$33","v":{"$error":"#VALUE!"}},{"$f":"+SUMIFS('Detall - Detalle'!$U:$U,'Detall - Detalle'!$S:$S,H$34,'Detall - Detalle'!$Z:$Z,'Pressupost - Pressupuesto'!$A7)+$B38*H$33","v":{"$error":"#VALUE!"}},{"$f":"+SUMIFS('Detall - Detalle'!$U:$U,'Detall - Detalle'!$S:$S,I$34,'Detall - Detalle'!$Z:$Z,'Pressupost - Pressupuesto'!$A7)+$B38*I$33","v":{"$error":"#VALUE!"}},{"$f":"+SUMIFS('Detall - Detalle'!$U:$U,'Detall - Detalle'!$S:$S,J$34,'Detall - Detalle'!$Z:$Z,'Pressupost - Pressupuesto'!$A7)+$B38*J$33","v":{"$error":"#VALUE!"}},{"$f":"+SUMIFS('Detall - Detalle'!$U:$U,'Detall - Detalle'!$S:$S,K$34,'Detall - Detalle'!$Z:$Z,'Pressupost - Pressupuesto'!$A7)+$B38*K$33","v":{"$error":"#VALUE!"}},{"$f":"+SUMIFS('Detall - Detalle'!$U:$U,'Detall - Detalle'!$S:$S,L$34,'Detall - Detalle'!$Z:$Z,'Pressupost - Pressupuesto'!$A7)+$B38*L$33","v":{"$error":"#VALUE!"}},{"$f":"+SUMIFS('Detall - Detalle'!$U:$U,'Detall - Detalle'!$S:$S,M$34,'Detall - Detalle'!$Z:$Z,'Pressupost - Pressupuesto'!$A7)+$B38*M$33","v":{"$error":"#VALUE!"}},{"$f":"+SUMIFS('Detall - Detalle'!$U:$U,'Detall - Detalle'!$S:$S,N$34,'Detall - Detalle'!$Z:$Z,'Pressupost - Pressupuesto'!$A7)+$B38*N$33","v":{"$error":"#VALUE!"}},{"$f":"+SUMIFS('Detall - Detalle'!$U:$U,'Detall - Detalle'!$S:$S,O$34,'Detall - Detalle'!$Z:$Z,'Pressupost - Pressupuesto'!$A7)+$B38*O$33","v":{"$error":"#VALUE!"}},{"$f":"+SUMIFS('Detall - Detalle'!$U:$U,'Detall - Detalle'!$S:$S,P$34,'Detall - Detalle'!$Z:$Z,'Pressupost - Pressupuesto'!$A7)+$B38*P$33","v":{"$error":"#VALUE!"}},{"$f":"+SUMIFS('Detall - Detalle'!$U:$U,'Detall - Detalle'!$S:$S,Q$34,'Detall - Detalle'!$Z:$Z,'Pressupost - Pressupuesto'!$A7)+$B38*Q$33","v":{"$error":"#VALUE!"}},{"$f":"+SUMIFS('Detall - Detalle'!$U:$U,'Detall - Detalle'!$S:$S,R$34,'Detall - Detalle'!$Z:$Z,'Pressupost - Pressupuesto'!$A7)+$B38*R$33","v":{"$error":"#VALUE!"}},{"$f":"+SUMIFS('Detall - Detalle'!$U:$U,'Detall - Detalle'!$S:$S,S$34,'Detall - Detalle'!$Z:$Z,'Pressupost - Pressupuesto'!$A7)+$B38*S$33","v":{"$error":"#VALUE!"}},{"$f":"+SUMIFS('Detall - Detalle'!$U:$U,'Detall - Detalle'!$S:$S,T$34,'Detall - Detalle'!$Z:$Z,'Pressupost - Pressupuesto'!$A7)+$B38*T$33","v":{"$error":"#VALUE!"}},{"$f":"+SUMIFS('Detall - Detalle'!$U:$U,'Detall - Detalle'!$S:$S,U$34,'Detall - Detalle'!$Z:$Z,'Pressupost - Pressupuesto'!$A7)+$B38*U$33","v":{"$error":"#VALUE!"}},{"$f":"+SUMIFS('Detall - Detalle'!$U:$U,'Detall - Detalle'!$S:$S,V$34,'Detall - Detalle'!$Z:$Z,'Pressupost - Pressupuesto'!$A7)+$B38*V$33","v":{"$error":"#VALUE!"}}]
["a1.3 Personal assalariat a Catalunya / Personal asalariado Cataluña",{"$f":"+SUMIFS('Detall - Detalle'!$U:$U,'Detall - Detalle'!$S:$S,B$34,'Detall - Detalle'!$Z:$Z,'Pressupost - Pressupuesto'!$A8)","v":0},{"$f":"+SUMIFS('Detall - Detalle'!$U:$U,'Detall - Detalle'!$S:$S,C$34,'Detall - Detalle'!$Z:$Z,'Pressupost - Pressupuesto'!$A8)+$B39*C$33","v":{"$error":"#VALUE!"}},{"$f":"+SUMIFS('Detall - Detalle'!$U:$U,'Detall - Detalle'!$S:$S,D$34,'Detall - Detalle'!$Z:$Z,'Pressupost - Pressupuesto'!$A8)+$B39*D$33","v":{"$error":"#VALUE!"}},{"$f":"+SUMIFS('Detall - Detalle'!$U:$U,'Detall - Detalle'!$S:$S,E$34,'Detall - Detalle'!$Z:$Z,'Pressupost - Pressupuesto'!$A8)+$B39*E$33","v":{"$error":"#VALUE!"}},{"$f":"+SUMIFS('Detall - Detalle'!$U:$U,'Detall - Detalle'!$S:$S,F$34,'Detall - Detalle'!$Z:$Z,'Pressupost - Pressupuesto'!$A8)+$B39*F$33","v":{"$error":"#VALUE!"}},{"$f":"+SUMIFS('Detall - Detalle'!$U:$U,'Detall - Detalle'!$S:$S,G$34,'Detall - Detalle'!$Z:$Z,'Pressupost - Pressupuesto'!$A8)+$B39*G$33","v":{"$error":"#VALUE!"}},{"$f":"+SUMIFS('Detall - Detalle'!$U:$U,'Detall - Detalle'!$S:$S,H$34,'Detall - Detalle'!$Z:$Z,'Pressupost - Pressupuesto'!$A8)+$B39*H$33","v":{"$error":"#VALUE!"}},{"$f":"+SUMIFS('Detall - Detalle'!$U:$U,'Detall - Detalle'!$S:$S,I$34,'Detall - Detalle'!$Z:$Z,'Pressupost - Pressupuesto'!$A8)+$B39*I$33","v":{"$error":"#VALUE!"}},{"$f":"+SUMIFS('Detall - Detalle'!$U:$U,'Detall - Detalle'!$S:$S,J$34,'Detall - Detalle'!$Z:$Z,'Pressupost - Pressupuesto'!$A8)+$B39*J$33","v":{"$error":"#VALUE!"}},{"$f":"+SUMIFS('Detall - Detalle'!$U:$U,'Detall - Detalle'!$S:$S,K$34,'Detall - Detalle'!$Z:$Z,'Pressupost - Pressupuesto'!$A8)+$B39*K$33","v":{"$error":"#VALUE!"}},{"$f":"+SUMIFS('Detall - Detalle'!$U:$U,'Detall - Detalle'!$S:$S,L$34,'Detall - Detalle'!$Z:$Z,'Pressupost - Pressupuesto'!$A8)+$B39*L$33","v":{"$error":"#VALUE!"}},{"$f":"+SUMIFS('Detall - Detalle'!$U:$U,'Detall - Detalle'!$S:$S,M$34,'Detall - Detalle'!$Z:$Z,'Pressupost - Pressupuesto'!$A8)+$B39*M$33","v":{"$error":"#VALUE!"}},{"$f":"+SUMIFS('Detall - Detalle'!$U:$U,'Detall - Detalle'!$S:$S,N$34,'Detall - Detalle'!$Z:$Z,'Pressupost - Pressupuesto'!$A8)+$B39*N$33","v":{"$error":"#VALUE!"}},{"$f":"+SUMIFS('Detall - Detalle'!$U:$U,'Detall - Detalle'!$S:$S,O$34,'Detall - Detalle'!$Z:$Z,'Pressupost - Pressupuesto'!$A8)+$B39*O$33","v":{"$error":"#VALUE!"}},{"$f":"+SUMIFS('Detall - Detalle'!$U:$U,'Detall - Detalle'!$S:$S,P$34,'Detall - Detalle'!$Z:$Z,'Pressupost - Pressupuesto'!$A8)+$B39*P$33","v":{"$error":"#VALUE!"}},{"$f":"+SUMIFS('Detall - Detalle'!$U:$U,'Detall - Detalle'!$S:$S,Q$34,'Detall - Detalle'!$Z:$Z,'Pressupost - Pressupuesto'!$A8)+$B39*Q$33","v":{"$error":"#VALUE!"}},{"$f":"+SUMIFS('Detall - Detalle'!$U:$U,'Detall - Detalle'!$S:$S,R$34,'Detall - Detalle'!$Z:$Z,'Pressupost - Pressupuesto'!$A8)+$B39*R$33","v":{"$error":"#VALUE!"}},{"$f":"+SUMIFS('Detall - Detalle'!$U:$U,'Detall - Detalle'!$S:$S,S$34,'Detall - Detalle'!$Z:$Z,'Pressupost - Pressupuesto'!$A8)+$B39*S$33","v":{"$error":"#VALUE!"}},{"$f":"+SUMIFS('Detall - Detalle'!$U:$U,'Detall - Detalle'!$S:$S,T$34,'Detall - Detalle'!$Z:$Z,'Pressupost - Pressupuesto'!$A8)+$B39*T$33","v":{"$error":"#VALUE!"}},{"$f":"+SUMIFS('Detall - Detalle'!$U:$U,'Detall - Detalle'!$S:$S,U$34,'Detall - Detalle'!$Z:$Z,'Pressupost - Pressupuesto'!$A8)+$B39*U$33","v":{"$error":"#VALUE!"}},{"$f":"+SUMIFS('Detall - Detalle'!$U:$U,'Detall - Detalle'!$S:$S,V$34,'Detall - Detalle'!$Z:$Z,'Pressupost - Pressupuesto'!$A8)+$B39*V$33","v":{"$error":"#VALUE!"}}]
["a2 Lloguers / Alquileres",{"$f":"+SUMIFS('Detall - Detalle'!$U:$U,'Detall - Detalle'!$S:$S,B$34,'Detall - Detalle'!$Z:$Z,'Pressupost - Pressupuesto'!$A9)","v":0},{"$f":"+SUMIFS('Detall - Detalle'!$U:$U,'Detall - Detalle'!$S:$S,C$34,'Detall - Detalle'!$Z:$Z,'Pressupost - Pressupuesto'!$A9)+$B40*C$33","v":{"$error":"#VALUE!"}},{"$f":"+SUMIFS('Detall - Detalle'!$U:$U,'Detall - Detalle'!$S:$S,D$34,'Detall - Detalle'!$Z:$Z,'Pressupost - Pressupuesto'!$A9)+$B40*D$33","v":{"$error":"#VALUE!"}},{"$f":"+SUMIFS('Detall - Detalle'!$U:$U,'Detall - Detalle'!$S:$S,E$34,'Detall - Detalle'!$Z:$Z,'Pressupost - Pressupuesto'!$A9)+$B40*E$33","v":{"$error":"#VALUE!"}},{"$f":"+SUMIFS('Detall - Detalle'!$U:$U,'Detall - Detalle'!$S:$S,F$34,'Detall - Detalle'!$Z:$Z,'Pressupost - Pressupuesto'!$A9)+$B40*F$33","v":{"$error":"#VALUE!"}},{"$f":"+SUMIFS('Detall - Detalle'!$U:$U,'Detall - Detalle'!$S:$S,G$34,'Detall - Detalle'!$Z:$Z,'Pressupost - Pressupuesto'!$A9)+$B40*G$33","v":{"$error":"#VALUE!"}},{"$f":"+SUMIFS('Detall - Detalle'!$U:$U,'Detall - Detalle'!$S:$S,H$34,'Detall - Detalle'!$Z:$Z,'Pressupost - Pressupuesto'!$A9)+$B40*H$33","v":{"$error":"#VALUE!"}},{"$f":"+SUMIFS('Detall - Detalle'!$U:$U,'Detall - Detalle'!$S:$S,I$34,'Detall - Detalle'!$Z:$Z,'Pressupost - Pressupuesto'!$A9)+$B40*I$33","v":{"$error":"#VALUE!"}},{"$f":"+SUMIFS('Detall - Detalle'!$U:$U,'Detall - Detalle'!$S:$S,J$34,'Detall - Detalle'!$Z:$Z,'Pressupost - Pressupuesto'!$A9)+$B40*J$33","v":{"$error":"#VALUE!"}},{"$f":"+SUMIFS('Detall - Detalle'!$U:$U,'Detall - Detalle'!$S:$S,K$34,'Detall - Detalle'!$Z:$Z,'Pressupost - Pressupuesto'!$A9)+$B40*K$33","v":{"$error":"#VALUE!"}},{"$f":"+SUMIFS('Detall - Detalle'!$U:$U,'Detall - Detalle'!$S:$S,L$34,'Detall - Detalle'!$Z:$Z,'Pressupost - Pressupuesto'!$A9)+$B40*L$33","v":{"$error":"#VALUE!"}},{"$f":"+SUMIFS('Detall - Detalle'!$U:$U,'Detall - Detalle'!$S:$S,M$34,'Detall - Detalle'!$Z:$Z,'Pressupost - Pressupuesto'!$A9)+$B40*M$33","v":{"$error":"#VALUE!"}},{"$f":"+SUMIFS('Detall - Detalle'!$U:$U,'Detall - Detalle'!$S:$S,N$34,'Detall - Detalle'!$Z:$Z,'Pressupost - Pressupuesto'!$A9)+$B40*N$33","v":{"$error":"#VALUE!"}},{"$f":"+SUMIFS('Detall - Detalle'!$U:$U,'Detall - Detalle'!$S:$S,O$34,'Detall - Detalle'!$Z:$Z,'Pressupost - Pressupuesto'!$A9)+$B40*O$33","v":{"$error":"#VALUE!"}},{"$f":"+SUMIFS('Detall - Detalle'!$U:$U,'Detall - Detalle'!$S:$S,P$34,'Detall - Detalle'!$Z:$Z,'Pressupost - Pressupuesto'!$A9)+$B40*P$33","v":{"$error":"#VALUE!"}},{"$f":"+SUMIFS('Detall - Detalle'!$U:$U,'Detall - Detalle'!$S:$S,Q$34,'Detall - Detalle'!$Z:$Z,'Pressupost - Pressupuesto'!$A9)+$B40*Q$33","v":{"$error":"#VALUE!"}},{"$f":"+SUMIFS('Detall - Detalle'!$U:$U,'Detall - Detalle'!$S:$S,R$34,'Detall - Detalle'!$Z:$Z,'Pressupost - Pressupuesto'!$A9)+$B40*R$33","v":{"$error":"#VALUE!"}},{"$f":"+SUMIFS('Detall - Detalle'!$U:$U,'Detall - Detalle'!$S:$S,S$34,'Detall - Detalle'!$Z:$Z,'Pressupost - Pressupuesto'!$A9)+$B40*S$33","v":{"$error":"#VALUE!"}},{"$f":"+SUMIFS('Detall - Detalle'!$U:$U,'Detall - Detalle'!$S:$S,T$34,'Detall - Detalle'!$Z:$Z,'Pressupost - Pressupuesto'!$A9)+$B40*T$33","v":{"$error":"#VALUE!"}},{"$f":"+SUMIFS('Detall - Detalle'!$U:$U,'Detall - Detalle'!$S:$S,U$34,'Detall - Detalle'!$Z:$Z,'Pressupost - Pressupuesto'!$A9)+$B40*U$33","v":{"$error":"#VALUE!"}},{"$f":"+SUMIFS('Detall - Detalle'!$U:$U,'Detall - Detalle'!$S:$S,V$34,'Detall - Detalle'!$Z:$Z,'Pressupost - Pressupuesto'!$A9)+$B40*V$33","v":{"$error":"#VALUE!"}}]
["a3 Manteniment, conservació i reparació / Mantenimiento, conservación y reparación",{"$f":"+SUMIFS('Detall - Detalle'!$U:$U,'Detall - Detalle'!$S:$S,B$34,'Detall - Detalle'!$Z:$Z,'Pressupost - Pressupuesto'!$A10)","v":0},{"$f":"+SUMIFS('Detall - Detalle'!$U:$U,'Detall - Detalle'!$S:$S,C$34,'Detall - Detalle'!$Z:$Z,'Pressupost - Pressupuesto'!$A10)+$B41*C$33","v":{"$error":"#VALUE!"}},{"$f":"+SUMIFS('Detall - Detalle'!$U:$U,'Detall - Detalle'!$S:$S,D$34,'Detall - Detalle'!$Z:$Z,'Pressupost - Pressupuesto'!$A10)+$B41*D$33","v":{"$error":"#VALUE!"}},{"$f":"+SUMIFS('Detall - Detalle'!$U:$U,'Detall - Detalle'!$S:$S,E$34,'Detall - Detalle'!$Z:$Z,'Pressupost - Pressupuesto'!$A10)+$B41*E$33","v":{"$error":"#VALUE!"}},{"$f":"+SUMIFS('Detall - Detalle'!$U:$U,'Detall - Detalle'!$S:$S,F$34,'Detall - Detalle'!$Z:$Z,'Pressupost - Pressupuesto'!$A10)+$B41*F$33","v":{"$error":"#VALUE!"}},{"$f":"+SUMIFS('Detall - Detalle'!$U:$U,'Detall - Detalle'!$S:$S,G$34,'Detall - Detalle'!$Z:$Z,'Pressupost - Pressupuesto'!$A10)+$B41*G$33","v":{"$error":"#VALUE!"}},{"$f":"+SUMIFS('Detall - Detalle'!$U:$U,'Detall - Detalle'!$S:$S,H$34,'Detall - Detalle'!$Z:$Z,'Pressupost - Pressupuesto'!$A10)+$B41*H$33","v":{"$error":"#VALUE!"}},{"$f":"+SUMIFS('Detall - Detalle'!$U:$U,'Detall - Detalle'!$S:$S,I$34,'Detall - Detalle'!$Z:$Z,'Pressupost - Pressupuesto'!$A10)+$B41*I$33","v":{"$error":"#VALUE!"}},{"$f":"+SUMIFS('Detall - Detalle'!$U:$U,'Detall - Detalle'!$S:$S,J$34,'Detall - Detalle'!$Z:$Z,'Pressupost - Pressupuesto'!$A10)+$B41*J$33","v":{"$error":"#VALUE!"}},{"$f":"+SUMIFS('Detall - Detalle'!$U:$U,'Detall - Detalle'!$S:$S,K$34,'Detall - Detalle'!$Z:$Z,'Pressupost - Pressupuesto'!$A10)+$B41*K$33","v":{"$error":"#VALUE!"}},{"$f":"+SUMIFS('Detall - Detalle'!$U:$U,'Detall - Detalle'!$S:$S,L$34,'Detall - Detalle'!$Z:$Z,'Pressupost - Pressupuesto'!$A10)+$B41*L$33","v":{"$error":"#VALUE!"}},{"$f":"+SUMIFS('Detall - Detalle'!$U:$U,'Detall - Detalle'!$S:$S,M$34,'Detall - Detalle'!$Z:$Z,'Pressupost - Pressupuesto'!$A10)+$B41*M$33","v":{"$error":"#VALUE!"}},{"$f":"+SUMIFS('Detall - Detalle'!$U:$U,'Detall - Detalle'!$S:$S,N$34,'Detall - Detalle'!$Z:$Z,'Pressupost - Pressupuesto'!$A10)+$B41*N$33","v":{"$error":"#VALUE!"}},{"$f":"+SUMIFS('Detall - Detalle'!$U:$U,'Detall - Detalle'!$S:$S,O$34,'Detall - Detalle'!$Z:$Z,'Pressupost - Pressupuesto'!$A10)+$B41*O$33","v":{"$error":"#VALUE!"}},{"$f":"+SUMIFS('Detall - Detalle'!$U:$U,'Detall - Detalle'!$S:$S,P$34,'Detall - Detalle'!$Z:$Z,'Pressupost - Pressupuesto'!$A10)+$B41*P$33","v":{"$error":"#VALUE!"}},{"$f":"+SUMIFS('Detall - Detalle'!$U:$U,'Detall - Detalle'!$S:$S,Q$34,'Detall - Detalle'!$Z:$Z,'Pressupost - Pressupuesto'!$A10)+$B41*Q$33","v":{"$error":"#VALUE!"}},{"$f":"+SUMIFS('Detall - Detalle'!$U:$U,'Detall - Detalle'!$S:$S,R$34,'Detall - Detalle'!$Z:$Z,'Pressupost - Pressupuesto'!$A10)+$B41*R$33","v":{"$error":"#VALUE!"}},{"$f":"+SUMIFS('Detall - Detalle'!$U:$U,'Detall - Detalle'!$S:$S,S$34,'Detall - Detalle'!$Z:$Z,'Pressupost - Pressupuesto'!$A10)+$B41*S$33","v":{"$error":"#VALUE!"}},{"$f":"+SUMIFS('Detall - Detalle'!$U:$U,'Detall - Detalle'!$S:$S,T$34,'Detall - Detalle'!$Z:$Z,'Pressupost - Pressupuesto'!$A10)+$B41*T$33","v":{"$error":"#VALUE!"}},{"$f":"+SUMIFS('Detall - Detalle'!$U:$U,'Detall - Detalle'!$S:$S,U$34,'Detall - Detalle'!$Z:$Z,'Pressupost - Pressupuesto'!$A10)+$B41*U$33","v":{"$error":"#VALUE!"}},{"$f":"+SUMIFS('Detall - Detalle'!$U:$U,'Detall - Detalle'!$S:$S,V$34,'Detall - Detalle'!$Z:$Z,'Pressupost - Pressupuesto'!$A10)+$B41*V$33","v":{"$error":"#VALUE!"}}]
["a4 Material ordinari / Material ordinario",{"$f":"+SUMIFS('Detall - Detalle'!$U:$U,'Detall - Detalle'!$S:$S,B$34,'Detall - Detalle'!$Z:$Z,'Pressupost - Pressupuesto'!$A11)","v":0},{"$f":"+SUMIFS('Detall - Detalle'!$U:$U,'Detall - Detalle'!$S:$S,C$34,'Detall - Detalle'!$Z:$Z,'Pressupost - Pressupuesto'!$A11)+$B42*C$33","v":{"$error":"#VALUE!"}},{"$f":"+SUMIFS('Detall - Detalle'!$U:$U,'Detall - Detalle'!$S:$S,D$34,'Detall - Detalle'!$Z:$Z,'Pressupost - Pressupuesto'!$A11)+$B42*D$33","v":{"$error":"#VALUE!"}},{"$f":"+SUMIFS('Detall - Detalle'!$U:$U,'Detall - Detalle'!$S:$S,E$34,'Detall - Detalle'!$Z:$Z,'Pressupost - Pressupuesto'!$A11)+$B42*E$33","v":{"$error":"#VALUE!"}},{"$f":"+SUMIFS('Detall - Detalle'!$U:$U,'Detall - Detalle'!$S:$S,F$34,'Detall - Detalle'!$Z:$Z,'Pressupost - Pressupuesto'!$A11)+$B42*F$33","v":{"$error":"#VALUE!"}},{"$f":"+SUMIFS('Detall - Detalle'!$U:$U,'Detall - Detalle'!$S:$S,G$34,'Detall - Detalle'!$Z:$Z,'Pressupost - Pressupuesto'!$A11)+$B42*G$33","v":{"$error":"#VALUE!"}},{"$f":"+SUMIFS('Detall - Detalle'!$U:$U,'Detall - Detalle'!$S:$S,H$34,'Detall - Detalle'!$Z:$Z,'Pressupost - Pressupuesto'!$A11)+$B42*H$33","v":{"$error":"#VALUE!"}},{"$f":"+SUMIFS('Detall - Detalle'!$U:$U,'Detall - Detalle'!$S:$S,I$34,'Detall - Detalle'!$Z:$Z,'Pressupost - Pressupuesto'!$A11)+$B42*I$33","v":{"$error":"#VALUE!"}},{"$f":"+SUMIFS('Detall - Detalle'!$U:$U,'Detall - Detalle'!$S:$S,J$34,'Detall - Detalle'!$Z:$Z,'Pressupost - Pressupuesto'!$A11)+$B42*J$33","v":{"$error":"#VALUE!"}},{"$f":"+SUMIFS('Detall - Detalle'!$U:$U,'Detall - Detalle'!$S:$S,K$34,'Detall - Detalle'!$Z:$Z,'Pressupost - Pressupuesto'!$A11)+$B42*K$33","v":{"$error":"#VALUE!"}},{"$f":"+SUMIFS('Detall - Detalle'!$U:$U,'Detall - Detalle'!$S:$S,L$34,'Detall - Detalle'!$Z:$Z,'Pressupost - Pressupuesto'!$A11)+$B42*L$33","v":{"$error":"#VALUE!"}},{"$f":"+SUMIFS('Detall - Detalle'!$U:$U,'Detall - Detalle'!$S:$S,M$34,'Detall - Detalle'!$Z:$Z,'Pressupost - Pressupuesto'!$A11)+$B42*M$33","v":{"$error":"#VALUE!"}},{"$f":"+SUMIFS('Detall - Detalle'!$U:$U,'Detall - Detalle'!$S:$S,N$34,'Detall - Detalle'!$Z:$Z,'Pressupost - Pressupuesto'!$A11)+$B42*N$33","v":{"$error":"#VALUE!"}},{"$f":"+SUMIFS('Detall - Detalle'!$U:$U,'Detall - Detalle'!$S:$S,O$34,'Detall - Detalle'!$Z:$Z,'Pressupost - Pressupuesto'!$A11)+$B42*O$33","v":{"$error":"#VALUE!"}},{"$f":"+SUMIFS('Detall - Detalle'!$U:$U,'Detall - Detalle'!$S:$S,P$34,'Detall - Detalle'!$Z:$Z,'Pressupost - Pressupuesto'!$A11)+$B42*P$33","v":{"$error":"#VALUE!"}},{"$f":"+SUMIFS('Detall - Detalle'!$U:$U,'Detall - Detalle'!$S:$S,Q$34,'Detall - Detalle'!$Z:$Z,'Pressupost - Pressupuesto'!$A11)+$B42*Q$33","v":{"$error":"#VALUE!"}},{"$f":"+SUMIFS('Detall - Detalle'!$U:$U,'Detall - Detalle'!$S:$S,R$34,'Detall - Detalle'!$Z:$Z,'Pressupost - Pressupuesto'!$A11)+$B42*R$33","v":{"$error":"#VALUE!"}},{"$f":"+SUMIFS('Detall - Detalle'!$U:$U,'Detall - Detalle'!$S:$S,S$34,'Detall - Detalle'!$Z:$Z,'Pressupost - Pressupuesto'!$A11)+$B42*S$33","v":{"$error":"#VALUE!"}},{"$f":"+SUMIFS('Detall - Detalle'!$U:$U,'Detall - Detalle'!$S:$S,T$34,'Detall - Detalle'!$Z:$Z,'Pressupost - Pressupuesto'!$A11)+$B42*T$33","v":{"$error":"#VALUE!"}},{"$f":"+SUMIFS('Detall - Detalle'!$U:$U,'Detall - Detalle'!$S:$S,U$34,'Detall - Detalle'!$Z:$Z,'Pressupost - Pressupuesto'!$A11)+$B42*U$33","v":{"$error":"#VALUE!"}},{"$f":"+SUMIFS('Detall - Detalle'!$U:$U,'Detall - Detalle'!$S:$S,V$34,'Detall - Detalle'!$Z:$Z,'Pressupost - Pressupuesto'!$A11)+$B42*V$33","v":{"$error":"#VALUE!"}}]
["a5 Comunicacions, despeses postals i missatgeria / Comunicaciones, gastos postales y mensajería",{"$f":"+SUMIFS('Detall - Detalle'!$U:$U,'Detall - Detalle'!$S:$S,B$34,'Detall - Detalle'!$Z:$Z,'Pressupost - Pressupuesto'!$A12)","v":0},{"$f":"+SUMIFS('Detall - Detalle'!$U:$U,'Detall - Detalle'!$S:$S,C$34,'Detall - Detalle'!$Z:$Z,'Pressupost - Pressupuesto'!$A12)+$B43*C$33","v":{"$error":"#VALUE!"}},{"$f":"+SUMIFS('Detall - Detalle'!$U:$U,'Detall - Detalle'!$S:$S,D$34,'Detall - Detalle'!$Z:$Z,'Pressupost - Pressupuesto'!$A12)+$B43*D$33","v":{"$error":"#VALUE!"}},{"$f":"+SUMIFS('Detall - Detalle'!$U:$U,'Detall - Detalle'!$S:$S,E$34,'Detall - Detalle'!$Z:$Z,'Pressupost - Pressupuesto'!$A12)+$B43*E$33","v":{"$error":"#VALUE!"}},{"$f":"+SUMIFS('Detall - Detalle'!$U:$U,'Detall - Detalle'!$S:$S,F$34,'Detall - Detalle'!$Z:$Z,'Pressupost - Pressupuesto'!$A12)+$B43*F$33","v":{"$error":"#VALUE!"}},{"$f":"+SUMIFS('Detall - Detalle'!$U:$U,'Detall - Detalle'!$S:$S,G$34,'Detall - Detalle'!$Z:$Z,'Pressupost - Pressupuesto'!$A12)+$B43*G$33","v":{"$error":"#VALUE!"}},{"$f":"+SUMIFS('Detall - Detalle'!$U:$U,'Detall - Detalle'!$S:$S,H$34,'Detall - Detalle'!$Z:$Z,'Pressupost - Pressupuesto'!$A12)+$B43*H$33","v":{"$error":"#VALUE!"}},{"$f":"+SUMIFS('Detall - Detalle'!$U:$U,'Detall - Detalle'!$S:$S,I$34,'Detall - Detalle'!$Z:$Z,'Pressupost - Pressupuesto'!$A12)+$B43*I$33","v":{"$error":"#VALUE!"}},{"$f":"+SUMIFS('Detall - Detalle'!$U:$U,'Detall - Detalle'!$S:$S,J$34,'Detall - Detalle'!$Z:$Z,'Pressupost - Pressupuesto'!$A12)+$B43*J$33","v":{"$error":"#VALUE!"}},{"$f":"+SUMIFS('Detall - Detalle'!$U:$U,'Detall - Detalle'!$S:$S,K$34,'Detall - Detalle'!$Z:$Z,'Pressupost - Pressupuesto'!$A12)+$B43*K$33","v":{"$error":"#VALUE!"}},{"$f":"+SUMIFS('Detall - Detalle'!$U:$U,'Detall - Detalle'!$S:$S,L$34,'Detall - Detalle'!$Z:$Z,'Pressupost - Pressupuesto'!$A12)+$B43*L$33","v":{"$error":"#VALUE!"}},{"$f":"+SUMIFS('Detall - Detalle'!$U:$U,'Detall - Detalle'!$S:$S,M$34,'Detall - Detalle'!$Z:$Z,'Pressupost - Pressupuesto'!$A12)+$B43*M$33","v":{"$error":"#VALUE!"}},{"$f":"+SUMIFS('Detall - Detalle'!$U:$U,'Detall - Detalle'!$S:$S,N$34,'Detall - Detalle'!$Z:$Z,'Pressupost - Pressupuesto'!$A12)+$B43*N$33","v":{"$error":"#VALUE!"}},{"$f":"+SUMIFS('Detall - Detalle'!$U:$U,'Detall - Detalle'!$S:$S,O$34,'Detall - Detalle'!$Z:$Z,'Pressupost - Pressupuesto'!$A12)+$B43*O$33","v":{"$error":"#VALUE!"}},{"$f":"+SUMIFS('Detall - Detalle'!$U:$U,'Detall - Detalle'!$S:$S,P$34,'Detall - Detalle'!$Z:$Z,'Pressupost - Pressupuesto'!$A12)+$B43*P$33","v":{"$error":"#VALUE!"}},{"$f":"+SUMIFS('Detall - Detalle'!$U:$U,'Detall - Detalle'!$S:$S,Q$34,'Detall - Detalle'!$Z:$Z,'Pressupost - Pressupuesto'!$A12)+$B43*Q$33","v":{"$error":"#VALUE!"}},{"$f":"+SUMIFS('Detall - Detalle'!$U:$U,'Detall - Detalle'!$S:$S,R$34,'Detall - Detalle'!$Z:$Z,'Pressupost - Pressupuesto'!$A12)+$B43*R$33","v":{"$error":"#VALUE!"}},{"$f":"+SUMIFS('Detall - Detalle'!$U:$U,'Detall - Detalle'!$S:$S,S$34,'Detall - Detalle'!$Z:$Z,'Pressupost - Pressupuesto'!$A12)+$B43*S$33","v":{"$error":"#VALUE!"}},{"$f":"+SUMIFS('Detall - Detalle'!$U:$U,'Detall - Detalle'!$S:$S,T$34,'Detall - Detalle'!$Z:$Z,'Pressupost - Pressupuesto'!$A12)+$B43*T$33","v":{"$error":"#VALUE!"}},{"$f":"+SUMIFS('Detall - Detalle'!$U:$U,'Detall - Detalle'!$S:$S,U$34,'Detall - Detalle'!$Z:$Z,'Pressupost - Pressupuesto'!$A12)+$B43*U$33","v":{"$error":"#VALUE!"}},{"$f":"+SUMIFS('Detall - Detalle'!$U:$U,'Detall - Detalle'!$S:$S,V$34,'Detall - Detalle'!$Z:$Z,'Pressupost - Pressupuesto'!$A12)+$B43*V$33","v":{"$error":"#VALUE!"}}]
["a6 Reunions, conferències i formacions / Reuniones, conferencias y formaciones",{"$f":"+SUMIFS('Detall - Detalle'!$U:$U,'Detall - Detalle'!$S:$S,B$34,'Detall - Detalle'!$Z:$Z,'Pressupost - Pressupuesto'!$A13)","v":0},{"$f":"+SUMIFS('Detall - Detalle'!$U:$U,'Detall - Detalle'!$S:$S,C$34,'Detall - Detalle'!$Z:$Z,'Pressupost - Pressupuesto'!$A13)+$B44*C$33","v":{"$error":"#VALUE!"}},{"$f":"+SUMIFS('Detall - Detalle'!$U:$U,'Detall - Detalle'!$S:$S,D$34,'Detall - Detalle'!$Z:$Z,'Pressupost - Pressupuesto'!$A13)+$B44*D$33","v":{"$error":"#VALUE!"}},{"$f":"+SUMIFS('Detall - Detalle'!$U:$U,'Detall - Detalle'!$S:$S,E$34,'Detall - Detalle'!$Z:$Z,'Pressupost - Pressupuesto'!$A13)+$B44*E$33","v":{"$error":"#VALUE!"}},{"$f":"+SUMIFS('Detall - Detalle'!$U:$U,'Detall - Detalle'!$S:$S,F$34,'Detall - Detalle'!$Z:$Z,'Pressupost - Pressupuesto'!$A13)+$B44*F$33","v":{"$error":"#VALUE!"}},{"$f":"+SUMIFS('Detall - Detalle'!$U:$U,'Detall - Detalle'!$S:$S,G$34,'Detall - Detalle'!$Z:$Z,'Pressupost - Pressupuesto'!$A13)+$B44*G$33","v":{"$error":"#VALUE!"}},{"$f":"+SUMIFS('Detall - Detalle'!$U:$U,'Detall - Detalle'!$S:$S,H$34,'Detall - Detalle'!$Z:$Z,'Pressupost - Pressupuesto'!$A13)+$B44*H$33","v":{"$error":"#VALUE!"}},{"$f":"+SUMIFS('Detall - Detalle'!$U:$U,'Detall - Detalle'!$S:$S,I$34,'Detall - Detalle'!$Z:$Z,'Pressupost - Pressupuesto'!$A13)+$B44*I$33","v":{"$error":"#VALUE!"}},{"$f":"+SUMIFS('Detall - Detalle'!$U:$U,'Detall - Detalle'!$S:$S,J$34,'Detall - Detalle'!$Z:$Z,'Pressupost - Pressupuesto'!$A13)+$B44*J$33","v":{"$error":"#VALUE!"}},{"$f":"+SUMIFS('Detall - Detalle'!$U:$U,'Detall - Detalle'!$S:$S,K$34,'Detall - Detalle'!$Z:$Z,'Pressupost - Pressupuesto'!$A13)+$B44*K$33","v":{"$error":"#VALUE!"}},{"$f":"+SUMIFS('Detall - Detalle'!$U:$U,'Detall - Detalle'!$S:$S,L$34,'Detall - Detalle'!$Z:$Z,'Pressupost - Pressupuesto'!$A13)+$B44*L$33","v":{"$error":"#VALUE!"}},{"$f":"+SUMIFS('Detall - Detalle'!$U:$U,'Detall - Detalle'!$S:$S,M$34,'Detall - Detalle'!$Z:$Z,'Pressupost - Pressupuesto'!$A13)+$B44*M$33","v":{"$error":"#VALUE!"}},{"$f":"+SUMIFS('Detall - Detalle'!$U:$U,'Detall - Detalle'!$S:$S,N$34,'Detall - Detalle'!$Z:$Z,'Pressupost - Pressupuesto'!$A13)+$B44*N$33","v":{"$error":"#VALUE!"}},{"$f":"+SUMIFS('Detall - Detalle'!$U:$U,'Detall - Detalle'!$S:$S,O$34,'Detall - Detalle'!$Z:$Z,'Pressupost - Pressupuesto'!$A13)+$B44*O$33","v":{"$error":"#VALUE!"}},{"$f":"+SUMIFS('Detall - Detalle'!$U:$U,'Detall - Detalle'!$S:$S,P$34,'Detall - Detalle'!$Z:$Z,'Pressupost - Pressupuesto'!$A13)+$B44*P$33","v":{"$error":"#VALUE!"}},{"$f":"+SUMIFS('Detall - Detalle'!$U:$U,'Detall - Detalle'!$S:$S,Q$34,'Detall - Detalle'!$Z:$Z,'Pressupost - Pressupuesto'!$A13)+$B44*Q$33","v":{"$error":"#VALUE!"}},{"$f":"+SUMIFS('Detall - Detalle'!$U:$U,'Detall - Detalle'!$S:$S,R$34,'Detall - Detalle'!$Z:$Z,'Pressupost - Pressupuesto'!$A13)+$B44*R$33","v":{"$error":"#VALUE!"}},{"$f":"+SUMIFS('Detall - Detalle'!$U:$U,'Detall - Detalle'!$S:$S,S$34,'Detall - Detalle'!$Z:$Z,'Pressupost - Pressupuesto'!$A13)+$B44*S$33","v":{"$error":"#VALUE!"}},{"$f":"+SUMIFS('Detall - Detalle'!$U:$U,'Detall - Detalle'!$S:$S,T$34,'Detall - Detalle'!$Z:$Z,'Pressupost - Pressupuesto'!$A13)+$B44*T$33","v":{"$error":"#VALUE!"}},{"$f":"+SUMIFS('Detall - Detalle'!$U:$U,'Detall - Detalle'!$S:$S,U$34,'Detall - Detalle'!$Z:$Z,'Pressupost - Pressupuesto'!$A13)+$B44*U$33","v":{"$error":"#VALUE!"}},{"$f":"+SUMIFS('Detall - Detalle'!$U:$U,'Detall - Detalle'!$S:$S,V$34,'Detall - Detalle'!$Z:$Z,'Pressupost - Pressupuesto'!$A13)+$B44*V$33","v":{"$error":"#VALUE!"}}]
["a7 Publicitat i difusió / Publicidad y difusión",{"$f":"+SUMIFS('Detall - Detalle'!$U:$U,'Detall - Detalle'!$S:$S,B$34,'Detall - Detalle'!$Z:$Z,'Pressupost - Pressupuesto'!$A14)","v":0},{"$f":"+SUMIFS('Detall - Detalle'!$U:$U,'Detall - Detalle'!$S:$S,C$34,'Detall - Detalle'!$Z:$Z,'Pressupost - Pressupuesto'!$A14)+$B45*C$33","v":{"$error":"#VALUE!"}},{"$f":"+SUMIFS('Detall - Detalle'!$U:$U,'Detall - Detalle'!$S:$S,D$34,'Detall - Detalle'!$Z:$Z,'Pressupost - Pressupuesto'!$A14)+$B45*D$33","v":{"$error":"#VALUE!"}},{"$f":"+SUMIFS('Detall - Detalle'!$U:$U,'Detall - Detalle'!$S:$S,E$34,'Detall - Detalle'!$Z:$Z,'Pressupost - Pressupuesto'!$A14)+$B45*E$33","v":{"$error":"#VALUE!"}},{"$f":"+SUMIFS('Detall - Detalle'!$U:$U,'Detall - Detalle'!$S:$S,F$34,'Detall - Detalle'!$Z:$Z,'Pressupost - Pressupuesto'!$A14)+$B45*F$33","v":{"$error":"#VALUE!"}},{"$f":"+SUMIFS('Detall - Detalle'!$U:$U,'Detall - Detalle'!$S:$S,G$34,'Detall - Detalle'!$Z:$Z,'Pressupost - Pressupuesto'!$A14)+$B45*G$33","v":{"$error":"#VALUE!"}},{"$f":"+SUMIFS('Detall - Detalle'!$U:$U,'Detall - Detalle'!$S:$S,H$34,'Detall - Detalle'!$Z:$Z,'Pressupost - Pressupuesto'!$A14)+$B45*H$33","v":{"$error":"#VALUE!"}},{"$f":"+SUMIFS('Detall - Detalle'!$U:$U,'Detall - Detalle'!$S:$S,I$34,'Detall - Detalle'!$Z:$Z,'Pressupost - Pressupuesto'!$A14)+$B45*I$33","v":{"$error":"#VALUE!"}},{"$f":"+SUMIFS('Detall - Detalle'!$U:$U,'Detall - Detalle'!$S:$S,J$34,'Detall - Detalle'!$Z:$Z,'Pressupost - Pressupuesto'!$A14)+$B45*J$33","v":{"$error":"#VALUE!"}},{"$f":"+SUMIFS('Detall - Detalle'!$U:$U,'Detall - Detalle'!$S:$S,K$34,'Detall - Detalle'!$Z:$Z,'Pressupost - Pressupuesto'!$A14)+$B45*K$33","v":{"$error":"#VALUE!"}},{"$f":"+SUMIFS('Detall - Detalle'!$U:$U,'Detall - Detalle'!$S:$S,L$34,'Detall - Detalle'!$Z:$Z,'Pressupost - Pressupuesto'!$A14)+$B45*L$33","v":{"$error":"#VALUE!"}},{"$f":"+SUMIFS('Detall - Detalle'!$U:$U,'Detall - Detalle'!$S:$S,M$34,'Detall - Detalle'!$Z:$Z,'Pressupost - Pressupuesto'!$A14)+$B45*M$33","v":{"$error":"#VALUE!"}},{"$f":"+SUMIFS('Detall - Detalle'!$U:$U,'Detall - Detalle'!$S:$S,N$34,'Detall - Detalle'!$Z:$Z,'Pressupost - Pressupuesto'!$A14)+$B45*N$33","v":{"$error":"#VALUE!"}},{"$f":"+SUMIFS('Detall - Detalle'!$U:$U,'Detall - Detalle'!$S:$S,O$34,'Detall - Detalle'!$Z:$Z,'Pressupost - Pressupuesto'!$A14)+$B45*O$33","v":{"$error":"#VALUE!"}},{"$f":"+SUMIFS('Detall - Detalle'!$U:$U,'Detall - Detalle'!$S:$S,P$34,'Detall - Detalle'!$Z:$Z,'Pressupost - Pressupuesto'!$A14)+$B45*P$33","v":{"$error":"#VALUE!"}},{"$f":"+SUMIFS('Detall - Detalle'!$U:$U,'Detall - Detalle'!$S:$S,Q$34,'Detall - Detalle'!$Z:$Z,'Pressupost - Pressupuesto'!$A14)+$B45*Q$33","v":{"$error":"#VALUE!"}},{"$f":"+SUMIFS('Detall - Detalle'!$U:$U,'Detall - Detalle'!$S:$S,R$34,'Detall - Detalle'!$Z:$Z,'Pressupost - Pressupuesto'!$A14)+$B45*R$33","v":{"$error":"#VALUE!"}},{"$f":"+SUMIFS('Detall - Detalle'!$U:$U,'Detall - Detalle'!$S:$S,S$34,'Detall - Detalle'!$Z:$Z,'Pressupost - Pressupuesto'!$A14)+$B45*S$33","v":{"$error":"#VALUE!"}},{"$f":"+SUMIFS('Detall - Detalle'!$U:$U,'Detall - Detalle'!$S:$S,T$34,'Detall - Detalle'!$Z:$Z,'Pressupost - Pressupuesto'!$A14)+$B45*T$33","v":{"$error":"#VALUE!"}},{"$f":"+SUMIFS('Detall - Detalle'!$U:$U,'Detall - Detalle'!$S:$S,U$34,'Detall - Detalle'!$Z:$Z,'Pressupost - Pressupuesto'!$A14)+$B45*U$33","v":{"$error":"#VALUE!"}},{"$f":"+SUMIFS('Detall - Detalle'!$U:$U,'Detall - Detalle'!$S:$S,V$34,'Detall - Detalle'!$Z:$Z,'Pressupost - Pressupuesto'!$A14)+$B45*V$33","v":{"$error":"#VALUE!"}}]
["a8 Publicacions / Publicaciones",{"$f":"+SUMIFS('Detall - Detalle'!$U:$U,'Detall - Detalle'!$S:$S,B$34,'Detall - Detalle'!$Z:$Z,'Pressupost - Pressupuesto'!$A15)","v":0},{"$f":"+SUMIFS('Detall - Detalle'!$U:$U,'Detall - Detalle'!$S:$S,C$34,'Detall - Detalle'!$Z:$Z,'Pressupost - Pressupuesto'!$A15)+$B46*C$33","v":{"$error":"#VALUE!"}},{"$f":"+SUMIFS('Detall - Detalle'!$U:$U,'Detall - Detalle'!$S:$S,D$34,'Detall - Detalle'!$Z:$Z,'Pressupost - Pressupuesto'!$A15)+$B46*D$33","v":{"$error":"#VALUE!"}},{"$f":"+SUMIFS('Detall - Detalle'!$U:$U,'Detall - Detalle'!$S:$S,E$34,'Detall - Detalle'!$Z:$Z,'Pressupost - Pressupuesto'!$A15)+$B46*E$33","v":{"$error":"#VALUE!"}},{"$f":"+SUMIFS('Detall - Detalle'!$U:$U,'Detall - Detalle'!$S:$S,F$34,'Detall - Detalle'!$Z:$Z,'Pressupost - Pressupuesto'!$A15)+$B46*F$33","v":{"$error":"#VALUE!"}},{"$f":"+SUMIFS('Detall - Detalle'!$U:$U,'Detall - Detalle'!$S:$S,G$34,'Detall - Detalle'!$Z:$Z,'Pressupost - Pressupuesto'!$A15)+$B46*G$33","v":{"$error":"#VALUE!"}},{"$f":"+SUMIFS('Detall - Detalle'!$U:$U,'Detall - Detalle'!$S:$S,H$34,'Detall - Detalle'!$Z:$Z,'Pressupost - Pressupuesto'!$A15)+$B46*H$33","v":{"$error":"#VALUE!"}},{"$f":"+SUMIFS('Detall - Detalle'!$U:$U,'Detall - Detalle'!$S:$S,I$34,'Detall - Detalle'!$Z:$Z,'Pressupost - Pressupuesto'!$A15)+$B46*I$33","v":{"$error":"#VALUE!"}},{"$f":"+SUMIFS('Detall - Detalle'!$U:$U,'Detall - Detalle'!$S:$S,J$34,'Detall - Detalle'!$Z:$Z,'Pressupost - Pressupuesto'!$A15)+$B46*J$33","v":{"$error":"#VALUE!"}},{"$f":"+SUMIFS('Detall - Detalle'!$U:$U,'Detall - Detalle'!$S:$S,K$34,'Detall - Detalle'!$Z:$Z,'Pressupost - Pressupuesto'!$A15)+$B46*K$33","v":{"$error":"#VALUE!"}},{"$f":"+SUMIFS('Detall - Detalle'!$U:$U,'Detall - Detalle'!$S:$S,L$34,'Detall - Detalle'!$Z:$Z,'Pressupost - Pressupuesto'!$A15)+$B46*L$33","v":{"$error":"#VALUE!"}},{"$f":"+SUMIFS('Detall - Detalle'!$U:$U,'Detall - Detalle'!$S:$S,M$34,'Detall - Detalle'!$Z:$Z,'Pressupost - Pressupuesto'!$A15)+$B46*M$33","v":{"$error":"#VALUE!"}},{"$f":"+SUMIFS('Detall - Detalle'!$U:$U,'Detall - Detalle'!$S:$S,N$34,'Detall - Detalle'!$Z:$Z,'Pressupost - Pressupuesto'!$A15)+$B46*N$33","v":{"$error":"#VALUE!"}},{"$f":"+SUMIFS('Detall - Detalle'!$U:$U,'Detall - Detalle'!$S:$S,O$34,'Detall - Detalle'!$Z:$Z,'Pressupost - Pressupuesto'!$A15)+$B46*O$33","v":{"$error":"#VALUE!"}},{"$f":"+SUMIFS('Detall - Detalle'!$U:$U,'Detall - Detalle'!$S:$S,P$34,'Detall - Detalle'!$Z:$Z,'Pressupost - Pressupuesto'!$A15)+$B46*P$33","v":{"$error":"#VALUE!"}},{"$f":"+SUMIFS('Detall - Detalle'!$U:$U,'Detall - Detalle'!$S:$S,Q$34,'Detall - Detalle'!$Z:$Z,'Pressupost - Pressupuesto'!$A15)+$B46*Q$33","v":{"$error":"#VALUE!"}},{"$f":"+SUMIFS('Detall - Detalle'!$U:$U,'Detall - Detalle'!$S:$S,R$34,'Detall - Detalle'!$Z:$Z,'Pressupost - Pressupuesto'!$A15)+$B46*R$33","v":{"$error":"#VALUE!"}},{"$f":"+SUMIFS('Detall - Detalle'!$U:$U,'Detall - Detalle'!$S:$S,S$34,'Detall - Detalle'!$Z:$Z,'Pressupost - Pressupuesto'!$A15)+$B46*S$33","v":{"$error":"#VALUE!"}},{"$f":"+SUMIFS('Detall - Detalle'!$U:$U,'Detall - Detalle'!$S:$S,T$34,'Detall - Detalle'!$Z:$Z,'Pressupost - Pressupuesto'!$A15)+$B46*T$33","v":{"$error":"#VALUE!"}},{"$f":"+SUMIFS('Detall - Detalle'!$U:$U,'Detall - Detalle'!$S:$S,U$34,'Detall - Detalle'!$Z:$Z,'Pressupost - Pressupuesto'!$A15)+$B46*U$33","v":{"$error":"#VALUE!"}},{"$f":"+SUMIFS('Detall - Detalle'!$U:$U,'Detall - Detalle'!$S:$S,V$34,'Detall - Detalle'!$Z:$Z,'Pressupost - Pressupuesto'!$A15)+$B46*V$33","v":{"$error":"#VALUE!"}}]
["a9 Treballs tècnics i professionals / Trabajos técnicos y profesionales",{"$f":"+SUMIFS('Detall - Detalle'!$U:$U,'Detall - Detalle'!$S:$S,B$34,'Detall - Detalle'!$Z:$Z,'Pressupost - Pressupuesto'!$A16)","v":0},{"$f":"+SUMIFS('Detall - Detalle'!$U:$U,'Detall - Detalle'!$S:$S,C$34,'Detall - Detalle'!$Z:$Z,'Pressupost - Pressupuesto'!$A16)+$B47*C$33","v":{"$error":"#VALUE!"}},{"$f":"+SUMIFS('Detall - Detalle'!$U:$U,'Detall - Detalle'!$S:$S,D$34,'Detall - Detalle'!$Z:$Z,'Pressupost - Pressupuesto'!$A16)+$B47*D$33","v":{"$error":"#VALUE!"}},{"$f":"+SUMIFS('Detall - Detalle'!$U:$U,'Detall - Detalle'!$S:$S,E$34,'Detall - Detalle'!$Z:$Z,'Pressupost - Pressupuesto'!$A16)+$B47*E$33","v":{"$error":"#VALUE!"}},{"$f":"+SUMIFS('Detall - Detalle'!$U:$U,'Detall - Detalle'!$S:$S,F$34,'Detall - Detalle'!$Z:$Z,'Pressupost - Pressupuesto'!$A16)+$B47*F$33","v":{"$error":"#VALUE!"}},{"$f":"+SUMIFS('Detall - Detalle'!$U:$U,'Detall - Detalle'!$S:$S,G$34,'Detall - Detalle'!$Z:$Z,'Pressupost - Pressupuesto'!$A16)+$B47*G$33","v":{"$error":"#VALUE!"}},{"$f":"+SUMIFS('Detall - Detalle'!$U:$U,'Detall - Detalle'!$S:$S,H$34,'Detall - Detalle'!$Z:$Z,'Pressupost - Pressupuesto'!$A16)+$B47*H$33","v":{"$error":"#VALUE!"}},{"$f":"+SUMIFS('Detall - Detalle'!$U:$U,'Detall - Detalle'!$S:$S,I$34,'Detall - Detalle'!$Z:$Z,'Pressupost - Pressupuesto'!$A16)+$B47*I$33","v":{"$error":"#VALUE!"}},{"$f":"+SUMIFS('Detall - Detalle'!$U:$U,'Detall - Detalle'!$S:$S,J$34,'Detall - Detalle'!$Z:$Z,'Pressupost - Pressupuesto'!$A16)+$B47*J$33","v":{"$error":"#VALUE!"}},{"$f":"+SUMIFS('Detall - Detalle'!$U:$U,'Detall - Detalle'!$S:$S,K$34,'Detall - Detalle'!$Z:$Z,'Pressupost - Pressupuesto'!$A16)+$B47*K$33","v":{"$error":"#VALUE!"}},{"$f":"+SUMIFS('Detall - Detalle'!$U:$U,'Detall - Detalle'!$S:$S,L$34,'Detall - Detalle'!$Z:$Z,'Pressupost - Pressupuesto'!$A16)+$B47*L$33","v":{"$error":"#VALUE!"}},{"$f":"+SUMIFS('Detall - Detalle'!$U:$U,'Detall - Detalle'!$S:$S,M$34,'Detall - Detalle'!$Z:$Z,'Pressupost - Pressupuesto'!$A16)+$B47*M$33","v":{"$error":"#VALUE!"}},{"$f":"+SUMIFS('Detall - Detalle'!$U:$U,'Detall - Detalle'!$S:$S,N$34,'Detall - Detalle'!$Z:$Z,'Pressupost - Pressupuesto'!$A16)+$B47*N$33","v":{"$error":"#VALUE!"}},{"$f":"+SUMIFS('Detall - Detalle'!$U:$U,'Detall - Detalle'!$S:$S,O$34,'Detall - Detalle'!$Z:$Z,'Pressupost - Pressupuesto'!$A16)+$B47*O$33","v":{"$error":"#VALUE!"}},{"$f":"+SUMIFS('Detall - Detalle'!$U:$U,'Detall - Detalle'!$S:$S,P$34,'Detall - Detalle'!$Z:$Z,'Pressupost - Pressupuesto'!$A16)+$B47*P$33","v":{"$error":"#VALUE!"}},{"$f":"+SUMIFS('Detall - Detalle'!$U:$U,'Detall - Detalle'!$S:$S,Q$34,'Detall - Detalle'!$Z:$Z,'Pressupost - Pressupuesto'!$A16)+$B47*Q$33","v":{"$error":"#VALUE!"}},{"$f":"+SUMIFS('Detall - Detalle'!$U:$U,'Detall - Detalle'!$S:$S,R$34,'Detall - Detalle'!$Z:$Z,'Pressupost - Pressupuesto'!$A16)+$B47*R$33","v":{"$error":"#VALUE!"}},{"$f":"+SUMIFS('Detall - Detalle'!$U:$U,'Detall - Detalle'!$S:$S,S$34,'Detall - Detalle'!$Z:$Z,'Pressupost - Pressupuesto'!$A16)+$B47*S$33","v":{"$error":"#VALUE!"}},{"$f":"+SUMIFS('Detall - Detalle'!$U:$U,'Detall - Detalle'!$S:$S,T$34,'Detall - Detalle'!$Z:$Z,'Pressupost - Pressupuesto'!$A16)+$B47*T$33","v":{"$error":"#VALUE!"}},{"$f":"+SUMIFS('Detall - Detalle'!$U:$U,'Detall - Detalle'!$S:$S,U$34,'Detall - Detalle'!$Z:$Z,'Pressupost - Pressupuesto'!$A16)+$B47*U$33","v":{"$error":"#VALUE!"}},{"$f":"+SUMIFS('Detall - Detalle'!$U:$U,'Detall - Detalle'!$S:$S,V$34,'Detall - Detalle'!$Z:$Z,'Pressupost - Pressupuesto'!$A16)+$B47*V$33","v":{"$error":"#VALUE!"}}]
["a10 Identificació i formulació / Identificación y formulación",{"$f":"+SUMIFS('Detall - Detalle'!$U:$U,'Detall - Detalle'!$S:$S,B$34,'Detall - Detalle'!$Z:$Z,'Pressupost - Pressupuesto'!$A17)","v":0},{"$f":"+SUMIFS('Detall - Detalle'!$U:$U,'Detall - Detalle'!$S:$S,C$34,'Detall - Detalle'!$Z:$Z,'Pressupost - Pressupuesto'!$A17)+$B48*C$33","v":{"$error":"#VALUE!"}},{"$f":"+SUMIFS('Detall - Detalle'!$U:$U,'Detall - Detalle'!$S:$S,D$34,'Detall - Detalle'!$Z:$Z,'Pressupost - Pressupuesto'!$A17)+$B48*D$33","v":{"$error":"#VALUE!"}},{"$f":"+SUMIFS('Detall - Detalle'!$U:$U,'Detall - Detalle'!$S:$S,E$34,'Detall - Detalle'!$Z:$Z,'Pressupost - Pressupuesto'!$A17)+$B48*E$33","v":{"$error":"#VALUE!"}},{"$f":"+SUMIFS('Detall - Detalle'!$U:$U,'Detall - Detalle'!$S:$S,F$34,'Detall - Detalle'!$Z:$Z,'Pressupost - Pressupuesto'!$A17)+$B48*F$33","v":{"$error":"#VALUE!"}},{"$f":"+SUMIFS('Detall - Detalle'!$U:$U,'Detall - Detalle'!$S:$S,G$34,'Detall - Detalle'!$Z:$Z,'Pressupost - Pressupuesto'!$A17)+$B48*G$33","v":{"$error":"#VALUE!"}},{"$f":"+SUMIFS('Detall - Detalle'!$U:$U,'Detall - Detalle'!$S:$S,H$34,'Detall - Detalle'!$Z:$Z,'Pressupost - Pressupuesto'!$A17)+$B48*H$33","v":{"$error":"#VALUE!"}},{"$f":"+SUMIFS('Detall - Detalle'!$U:$U,'Detall - Detalle'!$S:$S,I$34,'Detall - Detalle'!$Z:$Z,'Pressupost - Pressupuesto'!$A17)+$B48*I$33","v":{"$error":"#VALUE!"}},{"$f":"+SUMIFS('Detall - Detalle'!$U:$U,'Detall - Detalle'!$S:$S,J$34,'Detall - Detalle'!$Z:$Z,'Pressupost - Pressupuesto'!$A17)+$B48*J$33","v":{"$error":"#VALUE!"}},{"$f":"+SUMIFS('Detall - Detalle'!$U:$U,'Detall - Detalle'!$S:$S,K$34,'Detall - Detalle'!$Z:$Z,'Pressupost - Pressupuesto'!$A17)+$B48*K$33","v":{"$error":"#VALUE!"}},{"$f":"+SUMIFS('Detall - Detalle'!$U:$U,'Detall - Detalle'!$S:$S,L$34,'Detall - Detalle'!$Z:$Z,'Pressupost - Pressupuesto'!$A17)+$B48*L$33","v":{"$error":"#VALUE!"}},{"$f":"+SUMIFS('Detall - Detalle'!$U:$U,'Detall - Detalle'!$S:$S,M$34,'Detall - Detalle'!$Z:$Z,'Pressupost - Pressupuesto'!$A17)+$B48*M$33","v":{"$error":"#VALUE!"}},{"$f":"+SUMIFS('Detall - Detalle'!$U:$U,'Detall - Detalle'!$S:$S,N$34,'Detall - Detalle'!$Z:$Z,'Pressupost - Pressupuesto'!$A17)+$B48*N$33","v":{"$error":"#VALUE!"}},{"$f":"+SUMIFS('Detall - Detalle'!$U:$U,'Detall - Detalle'!$S:$S,O$34,'Detall - Detalle'!$Z:$Z,'Pressupost - Pressupuesto'!$A17)+$B48*O$33","v":{"$error":"#VALUE!"}},{"$f":"+SUMIFS('Detall - Detalle'!$U:$U,'Detall - Detalle'!$S:$S,P$34,'Detall - Detalle'!$Z:$Z,'Pressupost - Pressupuesto'!$A17)+$B48*P$33","v":{"$error":"#VALUE!"}},{"$f":"+SUMIFS('Detall - Detalle'!$U:$U,'Detall - Detalle'!$S:$S,Q$34,'Detall - Detalle'!$Z:$Z,'Pressupost - Pressupuesto'!$A17)+$B48*Q$33","v":{"$error":"#VALUE!"}},{"$f":"+SUMIFS('Detall - Detalle'!$U:$U,'Detall - Detalle'!$S:$S,R$34,'Detall - Detalle'!$Z:$Z,'Pressupost - Pressupuesto'!$A17)+$B48*R$33","v":{"$error":"#VALUE!"}},{"$f":"+SUMIFS('Detall - Detalle'!$U:$U,'Detall - Detalle'!$S:$S,S$34,'Detall - Detalle'!$Z:$Z,'Pressupost - Pressupuesto'!$A17)+$B48*S$33","v":{"$error":"#VALUE!"}},{"$f":"+SUMIFS('Detall - Detalle'!$U:$U,'Detall - Detalle'!$S:$S,T$34,'Detall - Detalle'!$Z:$Z,'Pressupost - Pressupuesto'!$A17)+$B48*T$33","v":{"$error":"#VALUE!"}},{"$f":"+SUMIFS('Detall - Detalle'!$U:$U,'Detall - Detalle'!$S:$S,U$34,'Detall - Detalle'!$Z:$Z,'Pressupost - Pressupuesto'!$A17)+$B48*U$33","v":{"$error":"#VALUE!"}},{"$f":"+SUMIFS('Detall - Detalle'!$U:$U,'Detall - Detalle'!$S:$S,V$34,'Detall - Detalle'!$Z:$Z,'Pressupost - Pressupuesto'!$A17)+$B48*V$33","v":{"$error":"#VALUE!"}}]
["a11 Avaluació / Evaluación",{"$f":"+SUMIFS('Detall - Detalle'!$U:$U,'Detall - Detalle'!$S:$S,B$34,'Detall - Detalle'!$Z:$Z,'Pressupost - Pressupuesto'!$A18)","v":0},{"$f":"+SUMIFS('Detall - Detalle'!$U:$U,'Detall - Detalle'!$S:$S,C$34,'Detall - Detalle'!$Z:$Z,'Pressupost - Pressupuesto'!$A18)+$B49*C$33","v":{"$error":"#VALUE!"}},{"$f":"+SUMIFS('Detall - Detalle'!$U:$U,'Detall - Detalle'!$S:$S,D$34,'Detall - Detalle'!$Z:$Z,'Pressupost - Pressupuesto'!$A18)+$B49*D$33","v":{"$error":"#VALUE!"}},{"$f":"+SUMIFS('Detall - Detalle'!$U:$U,'Detall - Detalle'!$S:$S,E$34,'Detall - Detalle'!$Z:$Z,'Pressupost - Pressupuesto'!$A18)+$B49*E$33","v":{"$error":"#VALUE!"}},{"$f":"+SUMIFS('Detall - Detalle'!$U:$U,'Detall - Detalle'!$S:$S,F$34,'Detall - Detalle'!$Z:$Z,'Pressupost - Pressupuesto'!$A18)+$B49*F$33","v":{"$error":"#VALUE!"}},{"$f":"+SUMIFS('Detall - Detalle'!$U:$U,'Detall - Detalle'!$S:$S,G$34,'Detall - Detalle'!$Z:$Z,'Pressupost - Pressupuesto'!$A18)+$B49*G$33","v":{"$error":"#VALUE!"}},{"$f":"+SUMIFS('Detall - Detalle'!$U:$U,'Detall - Detalle'!$S:$S,H$34,'Detall - Detalle'!$Z:$Z,'Pressupost - Pressupuesto'!$A18)+$B49*H$33","v":{"$error":"#VALUE!"}},{"$f":"+SUMIFS('Detall - Detalle'!$U:$U,'Detall - Detalle'!$S:$S,I$34,'Detall - Detalle'!$Z:$Z,'Pressupost - Pressupuesto'!$A18)+$B49*I$33","v":{"$error":"#VALUE!"}},{"$f":"+SUMIFS('Detall - Detalle'!$U:$U,'Detall - Detalle'!$S:$S,J$34,'Detall - Detalle'!$Z:$Z,'Pressupost - Pressupuesto'!$A18)+$B49*J$33","v":{"$error":"#VALUE!"}},{"$f":"+SUMIFS('Detall - Detalle'!$U:$U,'Detall - Detalle'!$S:$S,K$34,'Detall - Detalle'!$Z:$Z,'Pressupost - Pressupuesto'!$A18)+$B49*K$33","v":{"$error":"#VALUE!"}},{"$f":"+SUMIFS('Detall - Detalle'!$U:$U,'Detall - Detalle'!$S:$S,L$34,'Detall - Detalle'!$Z:$Z,'Pressupost - Pressupuesto'!$A18)+$B49*L$33","v":{"$error":"#VALUE!"}},{"$f":"+SUMIFS('Detall - Detalle'!$U:$U,'Detall - Detalle'!$S:$S,M$34,'Detall - Detalle'!$Z:$Z,'Pressupost - Pressupuesto'!$A18)+$B49*M$33","v":{"$error":"#VALUE!"}},{"$f":"+SUMIFS('Detall - Detalle'!$U:$U,'Detall - Detalle'!$S:$S,N$34,'Detall - Detalle'!$Z:$Z,'Pressupost - Pressupuesto'!$A18)+$B49*N$33","v":{"$error":"#VALUE!"}},{"$f":"+SUMIFS('Detall - Detalle'!$U:$U,'Detall - Detalle'!$S:$S,O$34,'Detall - Detalle'!$Z:$Z,'Pressupost - Pressupuesto'!$A18)+$B49*O$33","v":{"$error":"#VALUE!"}},{"$f":"+SUMIFS('Detall - Detalle'!$U:$U,'Detall - Detalle'!$S:$S,P$34,'Detall - Detalle'!$Z:$Z,'Pressupost - Pressupuesto'!$A18)+$B49*P$33","v":{"$error":"#VALUE!"}},{"$f":"+SUMIFS('Detall - Detalle'!$U:$U,'Detall - Detalle'!$S:$S,Q$34,'Detall - Detalle'!$Z:$Z,'Pressupost - Pressupuesto'!$A18)+$B49*Q$33","v":{"$error":"#VALUE!"}},{"$f":"+SUMIFS('Detall - Detalle'!$U:$U,'Detall - Detalle'!$S:$S,R$34,'Detall - Detalle'!$Z:$Z,'Pressupost - Pressupuesto'!$A18)+$B49*R$33","v":{"$error":"#VALUE!"}},{"$f":"+SUMIFS('Detall - Detalle'!$U:$U,'Detall - Detalle'!$S:$S,S$34,'Detall - Detalle'!$Z:$Z,'Pressupost - Pressupuesto'!$A18)+$B49*S$33","v":{"$error":"#VALUE!"}},{"$f":"+SUMIFS('Detall - Detalle'!$U:$U,'Detall - Detalle'!$S:$S,T$34,'Detall - Detalle'!$Z:$Z,'Pressupost - Pressupuesto'!$A18)+$B49*T$33","v":{"$error":"#VALUE!"}},{"$f":"+SUMIFS('Detall - Detalle'!$U:$U,'Detall - Detalle'!$S:$S,U$34,'Detall - Detalle'!$Z:$Z,'Pressupost - Pressupuesto'!$A18)+$B49*U$33","v":{"$error":"#VALUE!"}},{"$f":"+SUMIFS('Detall - Detalle'!$U:$U,'Detall - Detalle'!$S:$S,V$34,'Detall - Detalle'!$Z:$Z,'Pressupost - Pressupuesto'!$A18)+$B49*V$33","v":{"$error":"#VALUE!"}}]
["a12 Dietes, locomoció, trasllats i allotjaments / Dietas, locomoción, traslados y alojamientos",{"$f":"+SUMIFS('Detall - Detalle'!$U:$U,'Detall - Detalle'!$S:$S,B$34,'Detall - Detalle'!$Z:$Z,'Pressupost - Pressupuesto'!$A19)","v":0},{"$f":"+SUMIFS('Detall - Detalle'!$U:$U,'Detall - Detalle'!$S:$S,C$34,'Detall - Detalle'!$Z:$Z,'Pressupost - Pressupuesto'!$A19)+$B50*C$33","v":{"$error":"#VALUE!"}},{"$f":"+SUMIFS('Detall - Detalle'!$U:$U,'Detall - Detalle'!$S:$S,D$34,'Detall - Detalle'!$Z:$Z,'Pressupost - Pressupuesto'!$A19)+$B50*D$33","v":{"$error":"#VALUE!"}},{"$f":"+SUMIFS('Detall - Detalle'!$U:$U,'Detall - Detalle'!$S:$S,E$34,'Detall - Detalle'!$Z:$Z,'Pressupost - Pressupuesto'!$A19)+$B50*E$33","v":{"$error":"#VALUE!"}},{"$f":"+SUMIFS('Detall - Detalle'!$U:$U,'Detall - Detalle'!$S:$S,F$34,'Detall - Detalle'!$Z:$Z,'Pressupost - Pressupuesto'!$A19)+$B50*F$33","v":{"$error":"#VALUE!"}},{"$f":"+SUMIFS('Detall - Detalle'!$U:$U,'Detall - Detalle'!$S:$S,G$34,'Detall - Detalle'!$Z:$Z,'Pressupost - Pressupuesto'!$A19)+$B50*G$33","v":{"$error":"#VALUE!"}},{"$f":"+SUMIFS('Detall - Detalle'!$U:$U,'Detall - Detalle'!$S:$S,H$34,'Detall - Detalle'!$Z:$Z,'Pressupost - Pressupuesto'!$A19)+$B50*H$33","v":{"$error":"#VALUE!"}},{"$f":"+SUMIFS('Detall - Detalle'!$U:$U,'Detall - Detalle'!$S:$S,I$34,'Detall - Detalle'!$Z:$Z,'Pressupost - Pressupuesto'!$A19)+$B50*I$33","v":{"$error":"#VALUE!"}},{"$f":"+SUMIFS('Detall - Detalle'!$U:$U,'Detall - Detalle'!$S:$S,J$34,'Detall - Detalle'!$Z:$Z,'Pressupost - Pressupuesto'!$A19)+$B50*J$33","v":{"$error":"#VALUE!"}},{"$f":"+SUMIFS('Detall - Detalle'!$U:$U,'Detall - Detalle'!$S:$S,K$34,'Detall - Detalle'!$Z:$Z,'Pressupost - Pressupuesto'!$A19)+$B50*K$33","v":{"$error":"#VALUE!"}},{"$f":"+SUMIFS('Detall - Detalle'!$U:$U,'Detall - Detalle'!$S:$S,L$34,'Detall - Detalle'!$Z:$Z,'Pressupost - Pressupuesto'!$A19)+$B50*L$33","v":{"$error":"#VALUE!"}},{"$f":"+SUMIFS('Detall - Detalle'!$U:$U,'Detall - Detalle'!$S:$S,M$34,'Detall - Detalle'!$Z:$Z,'Pressupost - Pressupuesto'!$A19)+$B50*M$33","v":{"$error":"#VALUE!"}},{"$f":"+SUMIFS('Detall - Detalle'!$U:$U,'Detall - Detalle'!$S:$S,N$34,'Detall - Detalle'!$Z:$Z,'Pressupost - Pressupuesto'!$A19)+$B50*N$33","v":{"$error":"#VALUE!"}},{"$f":"+SUMIFS('Detall - Detalle'!$U:$U,'Detall - Detalle'!$S:$S,O$34,'Detall - Detalle'!$Z:$Z,'Pressupost - Pressupuesto'!$A19)+$B50*O$33","v":{"$error":"#VALUE!"}},{"$f":"+SUMIFS('Detall - Detalle'!$U:$U,'Detall - Detalle'!$S:$S,P$34,'Detall - Detalle'!$Z:$Z,'Pressupost - Pressupuesto'!$A19)+$B50*P$33","v":{"$error":"#VALUE!"}},{"$f":"+SUMIFS('Detall - Detalle'!$U:$U,'Detall - Detalle'!$S:$S,Q$34,'Detall - Detalle'!$Z:$Z,'Pressupost - Pressupuesto'!$A19)+$B50*Q$33","v":{"$error":"#VALUE!"}},{"$f":"+SUMIFS('Detall - Detalle'!$U:$U,'Detall - Detalle'!$S:$S,R$34,'Detall - Detalle'!$Z:$Z,'Pressupost - Pressupuesto'!$A19)+$B50*R$33","v":{"$error":"#VALUE!"}},{"$f":"+SUMIFS('Detall - Detalle'!$U:$U,'Detall - Detalle'!$S:$S,S$34,'Detall - Detalle'!$Z:$Z,'Pressupost - Pressupuesto'!$A19)+$B50*S$33","v":{"$error":"#VALUE!"}},{"$f":"+SUMIFS('Detall - Detalle'!$U:$U,'Detall - Detalle'!$S:$S,T$34,'Detall - Detalle'!$Z:$Z,'Pressupost - Pressupuesto'!$A19)+$B50*T$33","v":{"$error":"#VALUE!"}},{"$f":"+SUMIFS('Detall - Detalle'!$U:$U,'Detall - Detalle'!$S:$S,U$34,'Detall - Detalle'!$Z:$Z,'Pressupost - Pressupuesto'!$A19)+$B50*U$33","v":{"$error":"#VALUE!"}},{"$f":"+SUMIFS('Detall - Detalle'!$U:$U,'Detall - Detalle'!$S:$S,V$34,'Detall - Detalle'!$Z:$Z,'Pressupost - Pressupuesto'!$A19)+$B50*V$33","v":{"$error":"#VALUE!"}}]
["a13 Informe auditor / Informe de auditor",{"$f":"+SUMIFS('Detall - Detalle'!$U:$U,'Detall - Detalle'!$S:$S,B$34,'Detall - Detalle'!$Z:$Z,'Pressupost - Pressupuesto'!$A20)","v":0},{"$f":"+SUMIFS('Detall - Detalle'!$U:$U,'Detall - Detalle'!$S:$S,C$34,'Detall - Detalle'!$Z:$Z,'Pressupost - Pressupuesto'!$A20)+$B51*C$33","v":{"$error":"#VALUE!"}},{"$f":"+SUMIFS('Detall - Detalle'!$U:$U,'Detall - Detalle'!$S:$S,D$34,'Detall - Detalle'!$Z:$Z,'Pressupost - Pressupuesto'!$A20)+$B51*D$33","v":{"$error":"#VALUE!"}},{"$f":"+SUMIFS('Detall - Detalle'!$U:$U,'Detall - Detalle'!$S:$S,E$34,'Detall - Detalle'!$Z:$Z,'Pressupost - Pressupuesto'!$A20)+$B51*E$33","v":{"$error":"#VALUE!"}},{"$f":"+SUMIFS('Detall - Detalle'!$U:$U,'Detall - Detalle'!$S:$S,F$34,'Detall - Detalle'!$Z:$Z,'Pressupost - Pressupuesto'!$A20)+$B51*F$33","v":{"$error":"#VALUE!"}},{"$f":"+SUMIFS('Detall - Detalle'!$U:$U,'Detall - Detalle'!$S:$S,G$34,'Detall - Detalle'!$Z:$Z,'Pressupost - Pressupuesto'!$A20)+$B51*G$33","v":{"$error":"#VALUE!"}},{"$f":"+SUMIFS('Detall - Detalle'!$U:$U,'Detall - Detalle'!$S:$S,H$34,'Detall - Detalle'!$Z:$Z,'Pressupost - Pressupuesto'!$A20)+$B51*H$33","v":{"$error":"#VALUE!"}},{"$f":"+SUMIFS('Detall - Detalle'!$U:$U,'Detall - Detalle'!$S:$S,I$34,'Detall - Detalle'!$Z:$Z,'Pressupost - Pressupuesto'!$A20)+$B51*I$33","v":{"$error":"#VALUE!"}},{"$f":"+SUMIFS('Detall - Detalle'!$U:$U,'Detall - Detalle'!$S:$S,J$34,'Detall - Detalle'!$Z:$Z,'Pressupost - Pressupuesto'!$A20)+$B51*J$33","v":{"$error":"#VALUE!"}},{"$f":"+SUMIFS('Detall - Detalle'!$U:$U,'Detall - Detalle'!$S:$S,K$34,'Detall - Detalle'!$Z:$Z,'Pressupost - Pressupuesto'!$A20)+$B51*K$33","v":{"$error":"#VALUE!"}},{"$f":"+SUMIFS('Detall - Detalle'!$U:$U,'Detall - Detalle'!$S:$S,L$34,'Detall - Detalle'!$Z:$Z,'Pressupost - Pressupuesto'!$A20)+$B51*L$33","v":{"$error":"#VALUE!"}},{"$f":"+SUMIFS('Detall - Detalle'!$U:$U,'Detall - Detalle'!$S:$S,M$34,'Detall - Detalle'!$Z:$Z,'Pressupost - Pressupuesto'!$A20)+$B51*M$33","v":{"$error":"#VALUE!"}},{"$f":"+SUMIFS('Detall - Detalle'!$U:$U,'Detall - Detalle'!$S:$S,N$34,'Detall - Detalle'!$Z:$Z,'Pressupost - Pressupuesto'!$A20)+$B51*N$33","v":{"$error":"#VALUE!"}},{"$f":"+SUMIFS('Detall - Detalle'!$U:$U,'Detall - Detalle'!$S:$S,O$34,'Detall - Detalle'!$Z:$Z,'Pressupost - Pressupuesto'!$A20)+$B51*O$33","v":{"$error":"#VALUE!"}},{"$f":"+SUMIFS('Detall - Detalle'!$U:$U,'Detall - Detalle'!$S:$S,P$34,'Detall - Detalle'!$Z:$Z,'Pressupost - Pressupuesto'!$A20)+$B51*P$33","v":{"$error":"#VALUE!"}},{"$f":"+SUMIFS('Detall - Detalle'!$U:$U,'Detall - Detalle'!$S:$S,Q$34,'Detall - Detalle'!$Z:$Z,'Pressupost - Pressupuesto'!$A20)+$B51*Q$33","v":{"$error":"#VALUE!"}},{"$f":"+SUMIFS('Detall - Detalle'!$U:$U,'Detall - Detalle'!$S:$S,R$34,'Detall - Detalle'!$Z:$Z,'Pressupost - Pressupuesto'!$A20)+$B51*R$33","v":{"$error":"#VALUE!"}},{"$f":"+SUMIFS('Detall - Detalle'!$U:$U,'Detall - Detalle'!$S:$S,S$34,'Detall - Detalle'!$Z:$Z,'Pressupost - Pressupuesto'!$A20)+$B51*S$33","v":{"$error":"#VALUE!"}},{"$f":"+SUMIFS('Detall - Detalle'!$U:$U,'Detall - Detalle'!$S:$S,T$34,'Detall - Detalle'!$Z:$Z,'Pressupost - Pressupuesto'!$A20)+$B51*T$33","v":{"$error":"#VALUE!"}},{"$f":"+SUMIFS('Detall - Detalle'!$U:$U,'Detall - Detalle'!$S:$S,U$34,'Detall - Detalle'!$Z:$Z,'Pressupost - Pressupuesto'!$A20)+$B51*U$33","v":{"$error":"#VALUE!"}},{"$f":"+SUMIFS('Detall - Detalle'!$U:$U,'Detall - Detalle'!$S:$S,V$34,'Detall - Detalle'!$Z:$Z,'Pressupost - Pressupuesto'!$A20)+$B51*V$33","v":{"$error":"#VALUE!"}}]
["a14 Despeses financeres / Gastos financieros",{"$f":"+SUMIFS('Detall - Detalle'!$U:$U,'Detall - Detalle'!$S:$S,B$34,'Detall - Detalle'!$Z:$Z,'Pressupost - Pressupuesto'!$A21)","v":0},{"$f":"+SUMIFS('Detall - Detalle'!$U:$U,'Detall - Detalle'!$S:$S,C$34,'Detall - Detalle'!$Z:$Z,'Pressupost - Pressupuesto'!$A21)+$B52*C$33","v":{"$error":"#VALUE!"}},{"$f":"+SUMIFS('Detall - Detalle'!$U:$U,'Detall - Detalle'!$S:$S,D$34,'Detall - Detalle'!$Z:$Z,'Pressupost - Pressupuesto'!$A21)+$B52*D$33","v":{"$error":"#VALUE!"}},{"$f":"+SUMIFS('Detall - Detalle'!$U:$U,'Detall - Detalle'!$S:$S,E$34,'Detall - Detalle'!$Z:$Z,'Pressupost - Pressupuesto'!$A21)+$B52*E$33","v":{"$error":"#VALUE!"}},{"$f":"+SUMIFS('Detall - Detalle'!$U:$U,'Detall - Detalle'!$S:$S,F$34,'Detall - Detalle'!$Z:$Z,'Pressupost - Pressupuesto'!$A21)+$B52*F$33","v":{"$error":"#VALUE!"}},{"$f":"+SUMIFS('Detall - Detalle'!$U:$U,'Detall - Detalle'!$S:$S,G$34,'Detall - Detalle'!$Z:$Z,'Pressupost - Pressupuesto'!$A21)+$B52*G$33","v":{"$error":"#VALUE!"}},{"$f":"+SUMIFS('Detall - Detalle'!$U:$U,'Detall - Detalle'!$S:$S,H$34,'Detall - Detalle'!$Z:$Z,'Pressupost - Pressupuesto'!$A21)+$B52*H$33","v":{"$error":"#VALUE!"}},{"$f":"+SUMIFS('Detall - Detalle'!$U:$U,'Detall - Detalle'!$S:$S,I$34,'Detall - Detalle'!$Z:$Z,'Pressupost - Pressupuesto'!$A21)+$B52*I$33","v":{"$error":"#VALUE!"}},{"$f":"+SUMIFS('Detall - Detalle'!$U:$U,'Detall - Detalle'!$S:$S,J$34,'Detall - Detalle'!$Z:$Z,'Pressupost - Pressupuesto'!$A21)+$B52*J$33","v":{"$error":"#VALUE!"}},{"$f":"+SUMIFS('Detall - Detalle'!$U:$U,'Detall - Detalle'!$S:$S,K$34,'Detall - Detalle'!$Z:$Z,'Pressupost - Pressupuesto'!$A21)+$B52*K$33","v":{"$error":"#VALUE!"}},{"$f":"+SUMIFS('Detall - Detalle'!$U:$U,'Detall - Detalle'!$S:$S,L$34,'Detall - Detalle'!$Z:$Z,'Pressupost - Pressupuesto'!$A21)+$B52*L$33","v":{"$error":"#VALUE!"}},{"$f":"+SUMIFS('Detall - Detalle'!$U:$U,'Detall - Detalle'!$S:$S,M$34,'Detall - Detalle'!$Z:$Z,'Pressupost - Pressupuesto'!$A21)+$B52*M$33","v":{"$error":"#VALUE!"}},{"$f":"+SUMIFS('Detall - Detalle'!$U:$U,'Detall - Detalle'!$S:$S,N$34,'Detall - Detalle'!$Z:$Z,'Pressupost - Pressupuesto'!$A21)+$B52*N$33","v":{"$error":"#VALUE!"}},{"$f":"+SUMIFS('Detall - Detalle'!$U:$U,'Detall - Detalle'!$S:$S,O$34,'Detall - Detalle'!$Z:$Z,'Pressupost - Pressupuesto'!$A21)+$B52*O$33","v":{"$error":"#VALUE!"}},{"$f":"+SUMIFS('Detall - Detalle'!$U:$U,'Detall - Detalle'!$S:$S,P$34,'Detall - Detalle'!$Z:$Z,'Pressupost - Pressupuesto'!$A21)+$B52*P$33","v":{"$error":"#VALUE!"}},{"$f":"+SUMIFS('Detall - Detalle'!$U:$U,'Detall - Detalle'!$S:$S,Q$34,'Detall - Detalle'!$Z:$Z,'Pressupost - Pressupuesto'!$A21)+$B52*Q$33","v":{"$error":"#VALUE!"}},{"$f":"+SUMIFS('Detall - Detalle'!$U:$U,'Detall - Detalle'!$S:$S,R$34,'Detall - Detalle'!$Z:$Z,'Pressupost - Pressupuesto'!$A21)+$B52*R$33","v":{"$error":"#VALUE!"}},{"$f":"+SUMIFS('Detall - Detalle'!$U:$U,'Detall - Detalle'!$S:$S,S$34,'Detall - Detalle'!$Z:$Z,'Pressupost - Pressupuesto'!$A21)+$B52*S$33","v":{"$error":"#VALUE!"}},{"$f":"+SUMIFS('Detall - Detalle'!$U:$U,'Detall - Detalle'!$S:$S,T$34,'Detall - Detalle'!$Z:$Z,'Pressupost - Pressupuesto'!$A21)+$B52*T$33","v":{"$error":"#VALUE!"}},{"$f":"+SUMIFS('Detall - Detalle'!$U:$U,'Detall - Detalle'!$S:$S,U$34,'Detall - Detalle'!$Z:$Z,'Pressupost - Pressupuesto'!$A21)+$B52*U$33","v":{"$error":"#VALUE!"}},{"$f":"+SUMIFS('Detall - Detalle'!$U:$U,'Detall - Detalle'!$S:$S,V$34,'Detall - Detalle'!$Z:$Z,'Pressupost - Pressupuesto'!$A21)+$B52*V$33","v":{"$error":"#VALUE!"}}]
["a15 Despeses de suport legal / Gastos de soporte legal",{"$f":"+SUMIFS('Detall - Detalle'!$U:$U,'Detall - Detalle'!$S:$S,B$34,'Detall - Detalle'!$Z:$Z,'Pressupost - Pressupuesto'!$A22)","v":0},{"$f":"+SUMIFS('Detall - Detalle'!$U:$U,'Detall - Detalle'!$S:$S,C$34,'Detall - Detalle'!$Z:$Z,'Pressupost - Pressupuesto'!$A22)+$B53*C$33","v":{"$error":"#VALUE!"}},{"$f":"+SUMIFS('Detall - Detalle'!$U:$U,'Detall - Detalle'!$S:$S,D$34,'Detall - Detalle'!$Z:$Z,'Pressupost - Pressupuesto'!$A22)+$B53*D$33","v":{"$error":"#VALUE!"}},{"$f":"+SUMIFS('Detall - Detalle'!$U:$U,'Detall - Detalle'!$S:$S,E$34,'Detall - Detalle'!$Z:$Z,'Pressupost - Pressupuesto'!$A22)+$B53*E$33","v":{"$error":"#VALUE!"}},{"$f":"+SUMIFS('Detall - Detalle'!$U:$U,'Detall - Detalle'!$S:$S,F$34,'Detall - Detalle'!$Z:$Z,'Pressupost - Pressupuesto'!$A22)+$B53*F$33","v":{"$error":"#VALUE!"}},{"$f":"+SUMIFS('Detall - Detalle'!$U:$U,'Detall - Detalle'!$S:$S,G$34,'Detall - Detalle'!$Z:$Z,'Pressupost - Pressupuesto'!$A22)+$B53*G$33","v":{"$error":"#VALUE!"}},{"$f":"+SUMIFS('Detall - Detalle'!$U:$U,'Detall - Detalle'!$S:$S,H$34,'Detall - Detalle'!$Z:$Z,'Pressupost - Pressupuesto'!$A22)+$B53*H$33","v":{"$error":"#VALUE!"}},{"$f":"+SUMIFS('Detall - Detalle'!$U:$U,'Detall - Detalle'!$S:$S,I$34,'Detall - Detalle'!$Z:$Z,'Pressupost - Pressupuesto'!$A22)+$B53*I$33","v":{"$error":"#VALUE!"}},{"$f":"+SUMIFS('Detall - Detalle'!$U:$U,'Detall - Detalle'!$S:$S,J$34,'Detall - Detalle'!$Z:$Z,'Pressupost - Pressupuesto'!$A22)+$B53*J$33","v":{"$error":"#VALUE!"}},{"$f":"+SUMIFS('Detall - Detalle'!$U:$U,'Detall - Detalle'!$S:$S,K$34,'Detall - Detalle'!$Z:$Z,'Pressupost - Pressupuesto'!$A22)+$B53*K$33","v":{"$error":"#VALUE!"}},{"$f":"+SUMIFS('Detall - Detalle'!$U:$U,'Detall - Detalle'!$S:$S,L$34,'Detall - Detalle'!$Z:$Z,'Pressupost - Pressupuesto'!$A22)+$B53*L$33","v":{"$error":"#VALUE!"}},{"$f":"+SUMIFS('Detall - Detalle'!$U:$U,'Detall - Detalle'!$S:$S,M$34,'Detall - Detalle'!$Z:$Z,'Pressupost - Pressupuesto'!$A22)+$B53*M$33","v":{"$error":"#VALUE!"}},{"$f":"+SUMIFS('Detall - Detalle'!$U:$U,'Detall - Detalle'!$S:$S,N$34,'Detall - Detalle'!$Z:$Z,'Pressupost - Pressupuesto'!$A22)+$B53*N$33","v":{"$error":"#VALUE!"}},{"$f":"+SUMIFS('Detall - Detalle'!$U:$U,'Detall - Detalle'!$S:$S,O$34,'Detall - Detalle'!$Z:$Z,'Pressupost - Pressupuesto'!$A22)+$B53*O$33","v":{"$error":"#VALUE!"}},{"$f":"+SUMIFS('Detall - Detalle'!$U:$U,'Detall - Detalle'!$S:$S,P$34,'Detall - Detalle'!$Z:$Z,'Pressupost - Pressupuesto'!$A22)+$B53*P$33","v":{"$error":"#VALUE!"}},{"$f":"+SUMIFS('Detall - Detalle'!$U:$U,'Detall - Detalle'!$S:$S,Q$34,'Detall - Detalle'!$Z:$Z,'Pressupost - Pressupuesto'!$A22)+$B53*Q$33","v":{"$error":"#VALUE!"}},{"$f":"+SUMIFS('Detall - Detalle'!$U:$U,'Detall - Detalle'!$S:$S,R$34,'Detall - Detalle'!$Z:$Z,'Pressupost - Pressupuesto'!$A22)+$B53*R$33","v":{"$error":"#VALUE!"}},{"$f":"+SUMIFS('Detall - Detalle'!$U:$U,'Detall - Detalle'!$S:$S,S$34,'Detall - Detalle'!$Z:$Z,'Pressupost - Pressupuesto'!$A22)+$B53*S$33","v":{"$error":"#VALUE!"}},{"$f":"+SUMIFS('Detall - Detalle'!$U:$U,'Detall - Detalle'!$S:$S,T$34,'Detall - Detalle'!$Z:$Z,'Pressupost - Pressupuesto'!$A22)+$B53*T$33","v":{"$error":"#VALUE!"}},{"$f":"+SUMIFS('Detall - Detalle'!$U:$U,'Detall - Detalle'!$S:$S,U$34,'Detall - Detalle'!$Z:$Z,'Pressupost - Pressupuesto'!$A22)+$B53*U$33","v":{"$error":"#VALUE!"}},{"$f":"+SUMIFS('Detall - Detalle'!$U:$U,'Detall - Detalle'!$S:$S,V$34,'Detall - Detalle'!$Z:$Z,'Pressupost - Pressupuesto'!$A22)+$B53*V$33","v":{"$error":"#VALUE!"}}]
["a16 Imprevistos / Imprevistos",{"$f":"+SUMIFS('Detall - Detalle'!$U:$U,'Detall - Detalle'!$S:$S,B$34,'Detall - Detalle'!$Z:$Z,'Pressupost - Pressupuesto'!$A23)","v":0},{"$f":"+SUMIFS('Detall - Detalle'!$U:$U,'Detall - Detalle'!$S:$S,C$34,'Detall - Detalle'!$Z:$Z,'Pressupost - Pressupuesto'!$A23)+$B54*C$33","v":{"$error":"#VALUE!"}},{"$f":"+SUMIFS('Detall - Detalle'!$U:$U,'Detall - Detalle'!$S:$S,D$34,'Detall - Detalle'!$Z:$Z,'Pressupost - Pressupuesto'!$A23)+$B54*D$33","v":{"$error":"#VALUE!"}},{"$f":"+SUMIFS('Detall - Detalle'!$U:$U,'Detall - Detalle'!$S:$S,E$34,'Detall - Detalle'!$Z:$Z,'Pressupost - Pressupuesto'!$A23)+$B54*E$33","v":{"$error":"#VALUE!"}},{"$f":"+SUMIFS('Detall - Detalle'!$U:$U,'Detall - Detalle'!$S:$S,F$34,'Detall - Detalle'!$Z:$Z,'Pressupost - Pressupuesto'!$A23)+$B54*F$33","v":{"$error":"#VALUE!"}},{"$f":"+SUMIFS('Detall - Detalle'!$U:$U,'Detall - Detalle'!$S:$S,G$34,'Detall - Detalle'!$Z:$Z,'Pressupost - Pressupuesto'!$A23)+$B54*G$33","v":{"$error":"#VALUE!"}},{"$f":"+SUMIFS('Detall - Detalle'!$U:$U,'Detall - Detalle'!$S:$S,H$34,'Detall - Detalle'!$Z:$Z,'Pressupost - Pressupuesto'!$A23)+$B54*H$33","v":{"$error":"#VALUE!"}},{"$f":"+SUMIFS('Detall - Detalle'!$U:$U,'Detall - Detalle'!$S:$S,I$34,'Detall - Detalle'!$Z:$Z,'Pressupost - Pressupuesto'!$A23)+$B54*I$33","v":{"$error":"#VALUE!"}},{"$f":"+SUMIFS('Detall - Detalle'!$U:$U,'Detall - Detalle'!$S:$S,J$34,'Detall - Detalle'!$Z:$Z,'Pressupost - Pressupuesto'!$A23)+$B54*J$33","v":{"$error":"#VALUE!"}},{"$f":"+SUMIFS('Detall - Detalle'!$U:$U,'Detall - Detalle'!$S:$S,K$34,'Detall - Detalle'!$Z:$Z,'Pressupost - Pressupuesto'!$A23)+$B54*K$33","v":{"$error":"#VALUE!"}},{"$f":"+SUMIFS('Detall - Detalle'!$U:$U,'Detall - Detalle'!$S:$S,L$34,'Detall - Detalle'!$Z:$Z,'Pressupost - Pressupuesto'!$A23)+$B54*L$33","v":{"$error":"#VALUE!"}},{"$f":"+SUMIFS('Detall - Detalle'!$U:$U,'Detall - Detalle'!$S:$S,M$34,'Detall - Detalle'!$Z:$Z,'Pressupost - Pressupuesto'!$A23)+$B54*M$33","v":{"$error":"#VALUE!"}},{"$f":"+SUMIFS('Detall - Detalle'!$U:$U,'Detall - Detalle'!$S:$S,N$34,'Detall - Detalle'!$Z:$Z,'Pressupost - Pressupuesto'!$A23)+$B54*N$33","v":{"$error":"#VALUE!"}},{"$f":"+SUMIFS('Detall - Detalle'!$U:$U,'Detall - Detalle'!$S:$S,O$34,'Detall - Detalle'!$Z:$Z,'Pressupost - Pressupuesto'!$A23)+$B54*O$33","v":{"$error":"#VALUE!"}},{"$f":"+SUMIFS('Detall - Detalle'!$U:$U,'Detall - Detalle'!$S:$S,P$34,'Detall - Detalle'!$Z:$Z,'Pressupost - Pressupuesto'!$A23)+$B54*P$33","v":{"$error":"#VALUE!"}},{"$f":"+SUMIFS('Detall - Detalle'!$U:$U,'Detall - Detalle'!$S:$S,Q$34,'Detall - Detalle'!$Z:$Z,'Pressupost - Pressupuesto'!$A23)+$B54*Q$33","v":{"$error":"#VALUE!"}},{"$f":"+SUMIFS('Detall - Detalle'!$U:$U,'Detall - Detalle'!$S:$S,R$34,'Detall - Detalle'!$Z:$Z,'Pressupost - Pressupuesto'!$A23)+$B54*R$33","v":{"$error":"#VALUE!"}},{"$f":"+SUMIFS('Detall - Detalle'!$U:$U,'Detall - Detalle'!$S:$S,S$34,'Detall - Detalle'!$Z:$Z,'Pressupost - Pressupuesto'!$A23)+$B54*S$33","v":{"$error":"#VALUE!"}},{"$f":"+SUMIFS('Detall - Detalle'!$U:$U,'Detall - Detalle'!$S:$S,T$34,'Detall - Detalle'!$Z:$Z,'Pressupost - Pressupuesto'!$A23)+$B54*T$33","v":{"$error":"#VALUE!"}},{"$f":"+SUMIFS('Detall - Detalle'!$U:$U,'Detall - Detalle'!$S:$S,U$34,'Detall - Detalle'!$Z:$Z,'Pressupost - Pressupuesto'!$A23)+$B54*U$33","v":{"$error":"#VALUE!"}},{"$f":"+SUMIFS('Detall - Detalle'!$U:$U,'Detall - Detalle'!$S:$S,V$34,'Detall - Detalle'!$Z:$Z,'Pressupost - Pressupuesto'!$A23)+$B54*V$33","v":{"$error":"#VALUE!"}}]
["DESPESES DIRECTES D'INVERSIÓ (Capítol VII) / GASTOS DIRECTOS DE INVERSIÓN (Capítulo VII)",{"$f":"SUM(B56:B57)","v":0},{"$f":"SUM(C56:C57)","v":{"$error":"#VALUE!"}},{"$f":"SUM(D56:D57)","v":{"$error":"#VALUE!"}},{"$error":"#VALUE!"},{"$error":"#VALUE!"},{"$error":"#VALUE!"},{"$error":"#VALUE!"},{"$error":"#VALUE!"},{"$error":"#VALUE!"},{"$error":"#VALUE!"},{"$error":"#VALUE!"},{"$error":"#VALUE!"},{"$error":"#VALUE!"},{"$f":"SUM(O56:O57)","v":{"$error":"#VALUE!"}},{"$error":"#VALUE!"},{"$error":"#VALUE!"},{"$error":"#VALUE!"},{"$error":"#VALUE!"},{"$error":"#VALUE!"},{"$error":"#VALUE!"},{"$error":"#VALUE!"}]
["b1 Béns inventariables / Bienes inventariables",{"$f":"+SUMIFS('Detall - Detalle'!$U:$U,'Detall - Detalle'!$S:$S,B$34,'Detall - Detalle'!$Z:$Z,'Pressupost - Pressupuesto'!$A25)","v":0},{"$f":"+SUMIFS('Detall - Detalle'!$U:$U,'Detall - Detalle'!$S:$S,C$34,'Detall - Detalle'!$Z:$Z,'Pressupost - Pressupuesto'!$A25)+$B56*C$33","v":{"$error":"#VALUE!"}},{"$f":"+SUMIFS('Detall - Detalle'!$U:$U,'Detall - Detalle'!$S:$S,D$34,'Detall - Detalle'!$Z:$Z,'Pressupost - Pressupuesto'!$A25)+$B56*D$33","v":{"$error":"#VALUE!"}},{"$f":"+SUMIFS('Detall - Detalle'!$U:$U,'Detall - Detalle'!$S:$S,E$34,'Detall - Detalle'!$Z:$Z,'Pressupost - Pressupuesto'!$A25)+$B56*E$33","v":{"$error":"#VALUE!"}},{"$f":"+SUMIFS('Detall - Detalle'!$U:$U,'Detall - Detalle'!$S:$S,F$34,'Detall - Detalle'!$Z:$Z,'Pressupost - Pressupuesto'!$A25)+$B56*F$33","v":{"$error":"#VALUE!"}},{"$f":"+SUMIFS('Detall - Detalle'!$U:$U,'Detall - Detalle'!$S:$S,G$34,'Detall - Detalle'!$Z:$Z,'Pressupost - Pressupuesto'!$A25)+$B56*G$33","v":{"$error":"#VALUE!"}},{"$f":"+SUMIFS('Detall - Detalle'!$U:$U,'Detall - Detalle'!$S:$S,H$34,'Detall - Detalle'!$Z:$Z,'Pressupost - Pressupuesto'!$A25)+$B56*H$33","v":{"$error":"#VALUE!"}},{"$f":"+SUMIFS('Detall - Detalle'!$U:$U,'Detall - Detalle'!$S:$S,I$34,'Detall - Detalle'!$Z:$Z,'Pressupost - Pressupuesto'!$A25)+$B56*I$33","v":{"$error":"#VALUE!"}},{"$f":"+SUMIFS('Detall - Detalle'!$U:$U,'Detall - Detalle'!$S:$S,J$34,'Detall - Detalle'!$Z:$Z,'Pressupost - Pressupuesto'!$A25)+$B56*J$33","v":{"$error":"#VALUE!"}},{"$f":"+SUMIFS('Detall - Detalle'!$U:$U,'Detall - Detalle'!$S:$S,K$34,'Detall - Detalle'!$Z:$Z,'Pressupost - Pressupuesto'!$A25)+$B56*K$33","v":{"$error":"#VALUE!"}},{"$f":"+SUMIFS('Detall - Detalle'!$U:$U,'Detall - Detalle'!$S:$S,L$34,'Detall - Detalle'!$Z:$Z,'Pressupost - Pressupuesto'!$A25)+$B56*L$33","v":{"$error":"#VALUE!"}},{"$f":"+SUMIFS('Detall - Detalle'!$U:$U,'Detall - Detalle'!$S:$S,M$34,'Detall - Detalle'!$Z:$Z,'Pressupost - Pressupuesto'!$A25)+$B56*M$33","v":{"$error":"#VALUE!"}},{"$f":"+SUMIFS('Detall - Detalle'!$U:$U,'Detall - Detalle'!$S:$S,N$34,'Detall - Detalle'!$Z:$Z,'Pressupost - Pressupuesto'!$A25)+$B56*N$33","v":{"$error":"#VALUE!"}},{"$f":"+SUMIFS('Detall - Detalle'!$U:$U,'Detall - Detalle'!$S:$S,O$34,'Detall - Detalle'!$Z:$Z,'Pressupost - Pressupuesto'!$A25)+$B56*O$33","v":{"$error":"#VALUE!"}},{"$f":"+SUMIFS('Detall - Detalle'!$U:$U,'Detall - Detalle'!$S:$S,P$34,'Detall - Detalle'!$Z:$Z,'Pressupost - Pressupuesto'!$A25)+$B56*P$33","v":{"$error":"#VALUE!"}},{"$f":"+SUMIFS('Detall - Detalle'!$U:$U,'Detall - Detalle'!$S:$S,Q$34,'Detall - Detalle'!$Z:$Z,'Pressupost - Pressupuesto'!$A25)+$B56*Q$33","v":{"$error":"#VALUE!"}},{"$f":"+SUMIFS('Detall - Detalle'!$U:$U,'Detall - Detalle'!$S:$S,R$34,'Detall - Detalle'!$Z:$Z,'Pressupost - Pressupuesto'!$A25)+$B56*R$33","v":{"$error":"#VALUE!"}},{"$f":"+SUMIFS('Detall - Detalle'!$U:$U,'Detall - Detalle'!$S:$S,S$34,'Detall - Detalle'!$Z:$Z,'Pressupost - Pressupuesto'!$A25)+$B56*S$33","v":{"$error":"#VALUE!"}},{"$f":"+SUMIFS('Detall - Detalle'!$U:$U,'Detall - Detalle'!$S:$S,T$34,'Detall - Detalle'!$Z:$Z,'Pressupost - Pressupuesto'!$A25)+$B56*T$33","v":{"$error":"#VALUE!"}},{"$f":"+SUMIFS('Detall - Detalle'!$U:$U,'Detall - Detalle'!$S:$S,U$34,'Detall - Detalle'!$Z:$Z,'Pressupost - Pressupuesto'!$A25)+$B56*U$33","v":{"$error":"#VALUE!"}},{"$f":"+SUMIFS('Detall - Detalle'!$U:$U,'Detall - Detalle'!$S:$S,V$34,'Detall - Detalle'!$Z:$Z,'Pressupost - Pressupuesto'!$A25)+$B56*V$33","v":{"$error":"#VALUE!"}}]
["DESPESES INDIRECTES (Cap IV) / GASTOS INDIRECTOS (Cap IV)",{"$f":"+SUMIFS('Detall - Detalle'!$U:$U,'Detall - Detalle'!$S:$S,B$34,'Detall - Detalle'!$Z:$Z,'Pressupost - Pressupuesto'!$A26)","v":0},{"$f":"+SUMIFS('Detall - Detalle'!$U:$U,'Detall - Detalle'!$S:$S,C$34,'Detall - Detalle'!$Z:$Z,'Pressupost - Pressupuesto'!$A26)+$B57*C$33","v":{"$error":"#VALUE!"}},{"$f":"+SUMIFS('Detall - Detalle'!$U:$U,'Detall - Detalle'!$S:$S,D$34,'Detall - Detalle'!$Z:$Z,'Pressupost - Pressupuesto'!$A26)+$B57*D$33","v":{"$error":"#VALUE!"}},{"$f":"+SUMIFS('Detall - Detalle'!$U:$U,'Detall - Detalle'!$S:$S,E$34,'Detall - Detalle'!$Z:$Z,'Pressupost - Pressupuesto'!$A26)+$B57*E$33","v":{"$error":"#VALUE!"}},{"$f":"+SUMIFS('Detall - Detalle'!$U:$U,'Detall - Detalle'!$S:$S,F$34,'Detall - Detalle'!$Z:$Z,'Pressupost - Pressupuesto'!$A26)+$B57*F$33","v":{"$error":"#VALUE!"}},{"$f":"+SUMIFS('Detall - Detalle'!$U:$U,'Detall - Detalle'!$S:$S,G$34,'Detall - Detalle'!$Z:$Z,'Pressupost - Pressupuesto'!$A26)+$B57*G$33","v":{"$error":"#VALUE!"}},{"$f":"+SUMIFS('Detall - Detalle'!$U:$U,'Detall - Detalle'!$S:$S,H$34,'Detall - Detalle'!$Z:$Z,'Pressupost - Pressupuesto'!$A26)+$B57*H$33","v":{"$error":"#VALUE!"}},{"$f":"+SUMIFS('Detall - Detalle'!$U:$U,'Detall - Detalle'!$S:$S,I$34,'Detall - Detalle'!$Z:$Z,'Pressupost - Pressupuesto'!$A26)+$B57*I$33","v":{"$error":"#VALUE!"}},{"$f":"+SUMIFS('Detall - Detalle'!$U:$U,'Detall - Detalle'!$S:$S,J$34,'Detall - Detalle'!$Z:$Z,'Pressupost - Pressupuesto'!$A26)+$B57*J$33","v":{"$error":"#VALUE!"}},{"$f":"+SUMIFS('Detall - Detalle'!$U:$U,'Detall - Detalle'!$S:$S,K$34,'Detall - Detalle'!$Z:$Z,'Pressupost - Pressupuesto'!$A26)+$B57*K$33","v":{"$error":"#VALUE!"}},{"$f":"+SUMIFS('Detall - Detalle'!$U:$U,'Detall - Detalle'!$S:$S,L$34,'Detall - Detalle'!$Z:$Z,'Pressupost - Pressupuesto'!$A26)+$B57*L$33","v":{"$error":"#VALUE!"}},{"$f":"+SUMIFS('Detall - Detalle'!$U:$U,'Detall - Detalle'!$S:$S,M$34,'Detall - Detalle'!$Z:$Z,'Pressupost - Pressupuesto'!$A26)+$B57*M$33","v":{"$error":"#VALUE!"}},{"$f":"+SUMIFS('Detall - Detalle'!$U:$U,'Detall - Detalle'!$S:$S,N$34,'Detall - Detalle'!$Z:$Z,'Pressupost - Pressupuesto'!$A26)+$B57*N$33","v":{"$error":"#VALUE!"}},{"$f":"+SUMIFS('Detall - Detalle'!$U:$U,'Detall - Detalle'!$S:$S,O$34,'Detall - Detalle'!$Z:$Z,'Pressupost - Pressupuesto'!$A26)+$B57*O$33","v":{"$error":"#VALUE!"}},{"$f":"+SUMIFS('Detall - Detalle'!$U:$U,'Detall - Detalle'!$S:$S,P$34,'Detall - Detalle'!$Z:$Z,'Pressupost - Pressupuesto'!$A26)+$B57*P$33","v":{"$error":"#VALUE!"}},{"$f":"+SUMIFS('Detall - Detalle'!$U:$U,'Detall - Detalle'!$S:$S,Q$34,'Detall - Detalle'!$Z:$Z,'Pressupost - Pressupuesto'!$A26)+$B57*Q$33","v":{"$error":"#VALUE!"}},{"$f":"+SUMIFS('Detall - Detalle'!$U:$U,'Detall - Detalle'!$S:$S,R$34,'Detall - Detalle'!$Z:$Z,'Pressupost - Pressupuesto'!$A26)+$B57*R$33","v":{"$error":"#VALUE!"}},{"$f":"+SUMIFS('Detall - Detalle'!$U:$U,'Detall - Detalle'!$S:$S,S$34,'Detall - Detalle'!$Z:$Z,'Pressupost - Pressupuesto'!$A26)+$B57*S$33","v":{"$error":"#VALUE!"}},{"$f":"+SUMIFS('Detall - Detalle'!$U:$U,'Detall - Detalle'!$S:$S,T$34,'Detall - Detalle'!$Z:$Z,'Pressupost - Pressupuesto'!$A26)+$B57*T$33","v":{"$error":"#VALUE!"}},{"$f":"+SUMIFS('Detall - Detalle'!$U:$U,'Detall - Detalle'!$S:$S,U$34,'Detall - Detalle'!$Z:$Z,'Pressupost - Pressupuesto'!$A26)+$B57*U$33","v":{"$error":"#VALUE!"}},{"$f":"+SUMIFS('Detall - Detalle'!$U:$U,'Detall - Detalle'!$S:$S,V$34,'Detall - Detalle'!$Z:$Z,'Pressupost - Pressupuesto'!$A26)+$B57*V$33","v":{"$error":"#VALUE!"}}]
["TOTAL DESPESES DIRECTES / TOTAL GASTOS DIRECTOS",{"$f":"+B55+B35","v":0},{"$error":"#VALUE!"},{"$error":"#VALUE!"},{"$error":"#VALUE!"},{"$error":"#VALUE!"},{"$error":"#VALUE!"},{"$error":"#VALUE!"},{"$error":"#VALUE!"},{"$error":"#VALUE!"},{"$error":"#VALUE!"},{"$error":"#VALUE!"},{"$error":"#VALUE!"},{"$error":"#VALUE!"},{"$error":"#VALUE!"},{"$error":"#VALUE!"},{"$error":"#VALUE!"},{"$error":"#VALUE!"},{"$error":"#VALUE!"},{"$error":"#VALUE!"},{"$error":"#VALUE!"},{"$error":"#VALUE!"}]
["DESPESES INDIRECTES / GASTOS INDIRECTOS",{"$f":"+SUMIFS('Detall - Detalle'!$U:$U,'Detall - Detalle'!$S:$S,B$34,'Detall - Detalle'!$Z:$Z,'Pressupost - Pressupuesto'!$A27)","v":0},{"$f":"+SUMIFS('Detall - Detalle'!$U:$U,'Detall - Detalle'!$S:$S,C$34,'Detall - Detalle'!$Z:$Z,'Pressupost - Pressupuesto'!$A27)+$B59*C$33","v":{"$error":"#VALUE!"}},{"$f":"+SUMIFS('Detall - Detalle'!$U:$U,'Detall - Detalle'!$S:$S,D$34,'Detall - Detalle'!$Z:$Z,'Pressupost - Pressupuesto'!$A27)+$B59*D$33","v":{"$error":"#VALUE!"}},{"$f":"+SUMIFS('Detall - Detalle'!$U:$U,'Detall - Detalle'!$S:$S,E$34,'Detall - Detalle'!$Z:$Z,'Pressupost - Pressupuesto'!$A27)+$B59*E$33","v":{"$error":"#VALUE!"}},{"$f":"+SUMIFS('Detall - Detalle'!$U:$U,'Detall - Detalle'!$S:$S,F$34,'Detall - Detalle'!$Z:$Z,'Pressupost - Pressupuesto'!$A27)+$B59*F$33","v":{"$error":"#VALUE!"}},{"$f":"+SUMIFS('Detall - Detalle'!$U:$U,'Detall - Detalle'!$S:$S,G$34,'Detall - Detalle'!$Z:$Z,'Pressupost - Pressupuesto'!$A27)+$B59*G$33","v":{"$error":"#VALUE!"}},{"$f":"+SUMIFS('Detall - Detalle'!$U:$U,'Detall - Detalle'!$S:$S,H$34,'Detall - Detalle'!$Z:$Z,'Pressupost - Pressupuesto'!$A27)+$B59*H$33","v":{"$error":"#VALUE!"}},{"$f":"+SUMIFS('Detall - Detalle'!$U:$U,'Detall - Detalle'!$S:$S,I$34,'Detall - Detalle'!$Z:$Z,'Pressupost - Pressupuesto'!$A27)+$B59*I$33","v":{"$error":"#VALUE!"}},{"$f":"+SUMIFS('Detall - Detalle'!$U:$U,'Detall - Detalle'!$S:$S,J$34,'Detall - Detalle'!$Z:$Z,'Pressupost - Pressupuesto'!$A27)+$B59*J$33","v":{"$error":"#VALUE!"}},{"$f":"+SUMIFS('Detall - Detalle'!$U:$U,'Detall - Detalle'!$S:$S,K$34,'Detall - Detalle'!$Z:$Z,'Pressupost - Pressupuesto'!$A27)+$B59*K$33","v":{"$error":"#VALUE!"}},{"$f":"+SUMIFS('Detall - Detalle'!$U:$U,'Detall - Detalle'!$S:$S,L$34,'Detall - Detalle'!$Z:$Z,'Pressupost - Pressupuesto'!$A27)+$B59*L$33","v":{"$error":"#VALUE!"}},{"$f":"+SUMIFS('Detall - Detalle'!$U:$U,'Detall - Detalle'!$S:$S,M$34,'Detall - Detalle'!$Z:$Z,'Pressupost - Pressupuesto'!$A27)+$B59*M$33","v":{"$error":"#VALUE!"}},{"$f":"+SUMIFS('Detall - Detalle'!$U:$U,'Detall - Detalle'!$S:$S,N$34,'Detall - Detalle'!$Z:$Z,'Pressupost - Pressupuesto'!$A27)+$B59*N$33","v":{"$error":"#VALUE!"}},{"$f":"+SUMIFS('Detall - Detalle'!$U:$U,'Detall - Detalle'!$S:$S,O$34,'Detall - Detalle'!$Z:$Z,'Pressupost - Pressupuesto'!$A27)+$B59*O$33","v":{"$error":"#VALUE!"}},{"$f":"+SUMIFS('Detall - Detalle'!$U:$U,'Detall - Detalle'!$S:$S,P$34,'Detall - Detalle'!$Z:$Z,'Pressupost - Pressupuesto'!$A27)+$B59*P$33","v":{"$error":"#VALUE!"}},{"$f":"+SUMIFS('Detall - Detalle'!$U:$U,'Detall - Detalle'!$S:$S,Q$34,'Detall - Detalle'!$Z:$Z,'Pressupost - Pressupuesto'!$A27)+$B59*Q$33","v":{"$error":"#VALUE!"}},{"$f":"+SUMIFS('Detall - Detalle'!$U:$U,'Detall - Detalle'!$S:$S,R$34,'Detall - Detalle'!$Z:$Z,'Pressupost - Pressupuesto'!$A27)+$B59*R$33","v":{"$error":"#VALUE!"}},{"$f":"+SUMIFS('Detall - Detalle'!$U:$U,'Detall - Detalle'!$S:$S,S$34,'Detall - Detalle'!$Z:$Z,'Pressupost - Pressupuesto'!$A27)+$B59*S$33","v":{"$error":"#VALUE!"}},{"$f":"+SUMIFS('Detall - Detalle'!$U:$U,'Detall - Detalle'!$S:$S,T$34,'Detall - Detalle'!$Z:$Z,'Pressupost - Pressupuesto'!$A27)+$B59*T$33","v":{"$error":"#VALUE!"}},{"$f":"+SUMIFS('Detall - Detalle'!$U:$U,'Detall - Detalle'!$S:$S,U$34,'Detall - Detalle'!$Z:$Z,'Pressupost - Pressupuesto'!$A27)+$B59*U$33","v":{"$error":"#VALUE!"}},{"$f":"+SUMIFS('Detall - Detalle'!$U:$U,'Detall - Detalle'!$S:$S,V$34,'Detall - Detalle'!$Z:$Z,'Pressupost - Pressupuesto'!$A27)+$B59*V$33","v":{"$error":"#VALUE!"}}]
["TOTAL DESPESES / TOTAL GASTOS",{"$f":"+B59+B58","v":0},{"$f":"+C59+C58","v":{"$error":"#VALUE!"}},{"$f":"+D59+D58","v":{"$error":"#VALUE!"}},{"$error":"#VALUE!"},{"$error":"#VALUE!"},{"$error":"#VALUE!"},{"$error":"#VALUE!"},{"$error":"#VALUE!"},{"$error":"#VALUE!"},{"$error":"#VALUE!"},{"$error":"#VALUE!"},{"$error":"#VALUE!"},{"$error":"#VALUE!"},{"$f":"+O59+O58","v":{"$error":"#VALUE!"}},{"$error":"#VALUE!"},{"$error":"#VALUE!"},{"$error":"#VALUE!"},{"$error":"#VALUE!"},{"$error":"#VALUE!"},{"$error":"#VALUE!"},{"$error":"#VALUE!"}]

{"sheet":"Detall - Detalle","index":3,"n_rows":47,"n_cols":30,"rows_kept":47,"cut":false,"hidden":false,"merged":[[1,0,2,2],[4,27,4,29],[4,9,4,14],[4,0,4,8],[4,15,4,23],[4,24,4,26]]}
[]
["Introducció del detall de les despeses del projecte / \nIntoducción del detalle de los gastos del proyecto"]
[]
[]
["DADES DE LES DESPESES / DATOS DE LOS GASTOS",null,null,null,null,null,null,null,null,"QUI FINANÇA LES DESPESES? / QUIEN FINANCIA LOS GASTOS?",null,null,null,null,null,"A QUINES ACTIVITATS AFECTA? / A QUE ACTIVIDADES AFECTAN LOS GASTOS?",null,null,null,null,null,null,null,null,"FILTRES / FILTROS",null,null,"AUXILIARS CÀLCULS"]
["ENTITAT QUE EXECUTA LA DESPESA / ENTIDAD EJECUTORA DEL GASTO","SÒCIA LOCAL / SOCIA LOCAL","CONCEPTE PRESSUPOST / CONCEPTO PRESUPUESTO","DETALL DESPESA / DETALLE GASTO","VALORITZACIÓ / VALORIZACIÓN","UNITATS / UNIDADES","QUANTITAT / CANTIDAD","PREU UNITARI / PRECIO UNITARIO","IMPORT / IMPORTE","% ACCD / \n%  ACCD","TOTAL ACCD / TOTAL ACCD","% ALTRES FINANÇADORS / \n% OTROS FINANCIADORES","TOTAL ALTRES FINANÇADORS / TOTAL OTROS FINANCIADORES","% ENTITAT EXECUTORA / \n% ENTIDAD EJECUTORA","TOTAL ENTITAT EXECUTORA / TOTAL ENTIDAD EJECUTORA","NÚM. D'ACTIVITATS AFECTADES / NÚM. ACTIVIDADES AFECTADAS","CHECK","COMPTADOR / CONTADOR","ACTIVITAT / ACTIVIDAD","% IMPUTAT A LA ACTIVITAT / % IMPUTADO A LA ACTIVIDAD","IMPORT ACTIVITAT / IMPORTE ACTIVIDAD","IMPORT ACCD / IMPORTE ACCD","IMPORT ALTRES FINANÇADORS / IMPORTE OTROS FINANCIADORES","IMPORT ENTITAT / IMPORTE ENTIDAD","ENTITAT EXECUTORA / ENTIDAD EJECUTORA","CONCEPTE PRESSUPOST / CONCEPTO PRESSUPUESTO","DETALL DESPESA / DETALLE GASTO","IMPORT","% FINANÇAT ACCD","% IMPUTAT ALTRES FINANÇADORS"]
[null,null,null,null,null,null,null,null,{"$f":"+IF(H7<>\"\",H7*G7,\"\")","v":""},null,{"$f":"+IF(H7<>\"\",J7*I7,\"\")","v":""},null,{"$f":"+IF(H7<>\"\",L7*I7,\"\")","v":""},{"$f":"IF(H7<>\"\",1-J7-L7,\"\")","v":""},{"$f":"+IFERROR(I7-K7-M7,\"\")","v":""},null,{"$f":"IF(P7<>\"\",IF(SUM(OFFSET(V7,0,0,P7,3))=I7,1,0),\"\")","v":""},{"$f":"+IFERROR(IF(P7<>\"\",P7,IF(R6>1,R6-1,\"\")),\"\")","v":""},null,null,{"$f":"+IFERROR(IF(P7=1,AB7,IF(T7<>\"\",T7*AB7,\"\")),\"\")","v":""},{"$f":"+IFERROR(IF(U7<>\"\",AC7*U7,\"\"),\"\")","v":""},{"$f":"+IFERROR(IF(U7<>\"\",U7*AD7,\"\"),\"\")","v":""},{"$f":"+IFERROR(U7-V7-W7,\"\")","v":""},{"$f":"+IF(R7<>\"\",IF(A7<>\"\",A7,Y6),\"\")","v":""},{"$f":"+IF(R7<>\"\",IF(C7<>\"\",C7,Z6),\"\")","v":""},{"$f":"+IF(R7<>\"\",IF(D7<>\"\",D7,AA6),\"\")","v":""},{"$f":"+IF(R7<>\"\",IF(I7<>\"\",I7,AB6),\"\")","v":""},{"$f":"+IF(R7<>\"\",IF(I7<>\"\",J7,AC6),\"\")","v":""},{"$f":"+IF(R7<>\"\",IF(I7<>\"\",L7,AD6),\"\")","v":""}]
[null,null,null,null,null,null,null,null,{"$f":"+IF(H8<>\"\",H8*G8,\"\")","v":""},null,{"$f":"+IF(H8<>\"\",J8*I8,\"\")","v":""},null,{"$f":"+IF(H8<>\"\",L8*I8,\"\")","v":""},{"$f":"IF(H8<>\"\",1-J8-L8,\"\")","v":""},{"$f":"+IFERROR(I8-K8-M8,\"\")","v":""},null,{"$f":"IF(P8<>\"\",IF(SUM(OFFSET(V8,0,0,P8,3))=I8,1,0),\"\")","v":""},{"$f":"+IFERROR(IF(P8<>\"\",P8,IF(R7>1,R7-1,\"\")),\"\")","v":""},null,null,{"$f":"+IFERROR(IF(P8=1,AB8,IF(T8<>\"\",T8*AB8,\"\")),\"\")","v":""},{"$f":"+IFERROR(IF(U8<>\"\",AC8*U8,\"\"),\"\")","v":""},{"$f":"+IFERROR(IF(U8<>\"\",U8*AD8,\"\"),\"\")","v":""},{"$f":"+IFERROR(U8-V8-W8,\"\")","v":""},{"$f":"+IF(R8<>\"\",IF(A8<>\"\",A8,Y7),\"\")","v":""},{"$f":"+IF(R8<>\"\",IF(C8<>\"\",C8,Z7),\"\")","v":""},{"$f":"+IF(R8<>\"\",IF(D8<>\"\",D8,AA7),\"\")","v":""},{"$f":"+IF(R8<>\"\",IF(I8<>\"\",I8,AB7),\"\")","v":""},{"$f":"+IF(R8<>\"\",IF(I8<>\"\",J8,AC7),\"\")","v":""},{"$f":"+IF(R8<>\"\",IF(I8<>\"\",L8,AD7),\"\")","v":""}]
[null,null,null,null,null,null,null,null,"",null,"",null,"","","",null,"","",null,null,"","","","","","","","","",""]
[null,null,null,null,null,null,null,null,"",null,"",null,"","","",null,"","",null,null,"","","","","","","","","",""]
[null,null,null,null,null,null,null,null,"",null,"",null,"","","",null,"","",null,null,"","","","","","","","","",""]
[null,null,null,null,null,null,null,null,"",null,"",null,"","","",null,"","",null,null,"","","","","","","","","",""]
[null,null,null,null,null,null,null,null,"",null,"",null,"","","",null,"","",null,null,"","","","","","","","","",""]
[null,null,null,null,null,null,null,null,"",null,"",null,"","","",null,"","",null,null,"","","","","","","","","",""]
[null,null,null,null,null,null,null,null,"",null,"",null,"","","",null,"","",null,null,"","","","","","","","","",""]
[null,null,null,null,null,null,null,null,"",null,"",null,"","","",null,"","",null,null,"","","","","","","","","",""]
[null,null,null,null,null,null,null,null,"",null,"",null,"","","",null,"","",null,null,"","","","","","","","","",""]
[null,null,null,null,null,null,null,null,"",null,"",null,"","","",null,"","",null,null,"","","","","","","","","",""]
[null,null,null,null,null,null,null,null,"",null,"",null,"","","",null,"","",null,null,"","","","","","","","","",""]
[null,null,null,null,null,null,null,null,"",null,"",null,"","","",null,"","",null,null,"","","","","","","","","",""]
[null,null,null,null,null,null,null,null,"",null,"",null,"","","",null,"","",null,null,"","","","","","","","","",""]
[null,null,null,null,null,null,null,null,"",null,"",null,"","","",null,"","",null,null,"","","","","","","","","",""]
[null,null,null,null,null,null,null,null,"",null,"",null,"","","",null,"","",null,null,"","","","","","","","","",""]
[null,null,null,null,null,null,null,null,"",null,"",null,"","","",null,"","",null,null,"","","","","","","","","",""]
[null,null,null,null,null,null,null,null,"",null,"",null,"","","",null,"","",null,null,"","","","","","","","","",""]
[null,null,null,null,null,null,null,null,"",null,"",null,"","","",null,"","",null,null,"","","","","","","","","",""]
[null,null,null,null,null,null,null,null,"",null,"",null,"","","",null,"","",null,null,"","","","","","","","","",""]
[null,null,null,null,null,null,null,null,"",null,"",null,"","","",null,"","",null,null,"","","","","","","","","",""]
[null,null,null,null,null,null,null,null,"",null,"",null,"","","",null,"","",null,null,"","","","","","","","","",""]
[null,null,null,null,null,null,null,null,"",null,"",null,"","","",null,"","",null,null,"","","","","","","","","",""]
[null,null,null,null,null,null,null,null,"",null,"",null,"","","",null,"","",null,null,"","","","","","","","","",""]
[null,null,null,null,null,null,null,null,"",null,"",null,"","","",null,"","",null,null,"","","","","","","","","",""]
[null,null,null,null,null,null,null,null,"",null,"",null,"","","",null,"","",null,null,"","","","","","","","","",""]
[null,null,null,null,null,null,null,null,"",null,"",null,"","","",null,"","",null,null,"","","","","","","","","",""]
[null,null,null,null,null,null,null,null,"",null,"",null,"","","",null,"","",null,null,"","","","","","","","","",""]
[null,null,null,null,null,null,null,null,"",null,"",null,"","","",null,"","",null,null,"","","","","","","","","",""]
[null,null,null,null,null,null,null,null,"",null,"",null,"","","",null,"","",null,null,"","","","","","","","","",""]
[null,null,null,null,null,null,null,null,"",null,"",null,"","","",null,"","",null,null,"","","","","","","","","",""]
[null,null,null,null,null,null,null,null,"",null,"",null,"","","",null,"","",null,null,"","","","","","","","","",""]
[null,null,null,null,null,null,null,null,"",null,"",null,"","","",null,"","",null,null,"","","","","","","","","",""]
[null,null,null,null,null,null,null,null,"",null,"",null,"","","",null,"","",null,null,"","","","","","","","","",""]
[null,null,null,null,null,null,null,null,"",null,"",null,"","","",null,"","",null,null,"","","","","","","","","",""]
[null,null,null,null,null,null,null,null,"",null,"",null,"","","",null,"","",null,null,"","","","","","","","","",""]
[null,null,null,null,null,null,null,null,"",null,"",null,"","","",null,"","",null,null,"","","","","","","","","",""]
[null,null,null,null,null,null,null,null,"",null,"",null,"","","",null,"","",null,null,"","","","","","","","","",""]
[null,null,null,null,null,null,null,null,"",null,"",null,"","","",null,"","",null,null,"","","","","","","","","",""]
[null,null,null,null,null,null,null,null,"",null,"",null,"","","",null,"","",null,null,"","","","","","","","","",""]

{"sheet":"Llista desplegable","index":4,"n_rows":22,"n_cols":7,"rows_kept":22,"cut":false,"hidden":true,"merged":[]}
["Partida pressupostària",null,"Executor del projecte/finançador",null,"Valorització",null,"Unitats"]
["a1. Remuneració  personal assalariat / Remuneración personal asalariado",null,"Beneficiària",null,"Sí",null,"Hores"]
["a1.1 Personal assalariat local / Personal asalariado local",null,"Sòcia_local",null,null,null,"Dies"]
["a1.2 Personal assalariat expatriat / Personal asalariado expatriado",null,null,null,null,null,"Mesos"]
["a1.3 Personal assalariat a Catalunya / Personal asalariado Cataluña",null,null,null,null,null,"Anys"]
["a2 Lloguers / Alquileres",null,null,null,null,null,"Unitats"]
["a3 Manteniment, conservació i reparació / Mantenimiento, conservación y reparación",null,null,null,null,null,"Servei"]
["a4 Material ordinari / Material ordinario",null,null,null,null,null,"Litres"]
["a5 Comunicacions, despeses postals i missatgeria / Comunicaciones, gastos postales y mensajería",null,"Socia Local",null,null,null,"Kit"]
["a6 Reunions, conferències i formacions / Reuniones, conferencias y formaciones",null,{"$f":"'Dades i com... - Datos y com...'!D21","v":0},null,null,null,"Lot"]
["a7 Publicitat i difusió / Publicidad y difusión",null,{"$f":"'Dades i com... - Datos y com...'!D22","v":0},null,null,null,"Forfait"]
["a8 Publicacions / Publicaciones",null,{"$f":"'Dades i com... - Datos y com...'!D23","v":0}]
["a9 Treballs tècnics i professionals / Trabajos técnicos y profesionales"]
["a10 Identificació i formulació / Identificación y formulación"]
["a11 Avaluació / Evaluación"]
["a12 Dietes, locomoció, trasllats i allotjaments / Dietas, locomoción, traslados y alojamientos"]
["a13 Informe auditor / Informe de auditor"]
["a14 Despeses financeres / Gastos financieros"]
["a15 Despeses de suport legal / Gastos de soporte legal"]
["a16 Imprevistos / Imprevistos"]
["b1 Béns inventariables / Bienes inventariables"]
["DESPESES INDIRECTES (Cap IV) / GASTOS INDIRECTOS (Cap IV)"]